{"text_format":"1","workbook":"xlsx","n_sheets":1,"sheets":["conceptos"],"not_rendered":{"charts":0,"images":2,"macros":1,"external_links":0,"defined_names":1,"comments":0,"pivot_tables":0},"unopened":[],"bounds":{"document_bytes":16777216,"sheet_cells":100000,"rows_first":2000,"rows_last":500,"rows_between":2000,"halvings":0,"cell_chars":16384,"cell_head_chars":4096},"cells_cut":0,"cells_raw":0,"read":"whole","date_system":"1900"}

{"sheet":"conceptos","index":0,"n_rows":253,"n_cols":8,"rows_kept":253,"cut":false,"hidden":false,"merged":[[250,0,250,4],[251,0,252,4],[13,0,13,6],[0,2,0,5],[9,2,9,5],[1,2,3,5],[4,2,4,3],[6,2,6,3],[7,2,7,3],[4,4,4,5],[5,4,5,5],[6,4,6,5],[7,4,7,5],[10,2,10,5],[11,2,11,5],[5,1,8,1]]}
[null,"GOBIERNO DEL ESTADO DE JALISCO","LICITACIÓN PÚBLICA ESTATAL"]
[null,"INSTITUTO DE LA INFRAESTRUCTURA FÍSICA EDUCATIVA DEL","INFEJAL-E-REMB2020-B-REH-06064-LP-0099-2021"]
[null,"ESTADO DE JALISCO"]
[]
[null,"DESCRIPCIÓN GENERAL DE LOS TRABAJOS:","FECHA DE INICIO:"]
[null,null,null,"FECHA DE TERMINACIÓN:"]
[null,null,"PLAZO DE EJECUCIÓN:"]
[null,null,"FECHA:"]
[]
[null,"RAZÓN SOCIAL DEL LICITANTE:","NOMBRE, CARGO Y FIRMA DEL LICITANTE:",null,null,null,"DOCUMENTO"]
[]
[]
[]
["PRESUPUESTO DE OBRA"]
[]
["CLAVE","DESCRIPCIÓN","UNIDAD","CANTIDAD","PRECIO UNITARIO ($)","PRECIO UNITARIO ($) CON LETRA","IMPORTE ($) M.N."]
["TRABAJO : BAS-REH-06064","CONSTRUCCIÓN DE ESTRUCTURA CON LONARIA, REFORZAMIENTO Y REHABILITACIÓN GENERAL DE EDIFICIOS EN LA ESCUELA PRIMARIA PRACTICA ANEXA A LA NORMAL CCT 14EPR0001Y, UBICADA EN LA CABECERA MUNICIPAL DE GUADALAJARA, JALISCO. ",null,null,null,null,{"$f":"TEXT(SUM(G18 + G164 + G196), \"$ #,##0.00 ;\")","v":"$ 0.00 "}]
["EDFS","EDIFICIOS",null,null,null,null,{"$f":"TEXT(SUM(G19 + G46 + G53 + G55 + G58 + G67 + G73 + G76 + G83 + G89 + G100 + G144 + G147 + G152), \"$ #,##0.00 ;\")","v":"$ 0.00 "}]
["EDFS.01(140)","DEMOLICIONES, DESMONTAJES Y MECANICA DE SUELOS    ",null,null,null,null,{"$f":"TEXT(SUM(G20:G45), \"$ #,##0.00 ;\")","v":"$ 0.00 "}]
[140050,"DEMOLICION DE FIRME DE LADRILLO DE LAMA DE 8 CM. DE ESPESOR ASENTADO CON MORTERO CAL-ARENA AMARILLA, INCLUYE; HERRAMIENTA, EQUIPO  NECESARIO, MANO DE OBRA Y ACARREO DE MATERIAL PRODUCTO DE DEMOLICION FUERA DE LA OBRA.","M2 ","60.0000",0,"CERO PESOS 00/100 M.N.",0,394891]
[140058,"LIMPIEZA Y PREPARACION DE LA SUPERFICIE, REMOVIENDO CASCARAS DE IMPERMEABILIZANTE  EXISTENTES, EN MAL ESTADO, POR CUALQUIER MEDIO INCLUYE: RETIRO Y ACARREO DE MAT. DE DESHECHO DENTRO Y FUERA DE LA OBRA, MANO DE OBRA, HERRAMIENTAS,  Y LIMPIEZA DEL AREA DE TRABAJO PROCURANDO DEJAR PREPARACION DE TECHO PARA RECIBIR NUEVA APLICACION DE IMPERMEABILIZANTE.","M2 ","1,213.0000",0,"CERO PESOS 00/100 M.N.",0,394892]
[140076,"DEMOLICION DE MURO DE LADRILLO DE LAMA Y/O BLOCK DE JALCRETO DE 14 CMS. DE ESPESOR A CUALQUIER NIVEL, INCLUYE:  DEMOLICION DE DALAS, CADENAS Y CASTILLOS,  DEMOLICION DE RECUBRMIENTOS, APLANADOS, AZULEJO,(PROTECCIONES DE PISOS, VIDRIOS, PUERTAS, VENTANAS, LAMPARAS Y DEMAS INSTALACIONES QUE PUDIERAN RESULTAR DAÑADAS EN EL PROCESO DE LA DEMOLICION.) HERRAMIENTAS, EQUIPO DE SEGURIDAD,  ANDAMIOS, MANO DE OBRA, RETIRO Y ACARREO DE MATERIALES DE DESHECHO DENTRO Y FUERA DE LA OBRA ATIRADERO AUTORIZADO Y LIMPIEZA DEL AREA DE LOS TRABAJOS.","M2 ","30.0000",0,"CERO PESOS 00/100 M.N.",0,394893]
[140078,"DEMOLICION DE AZULEJO A CUALQUIER NIVEL, INCLUYE:,(PROTECCIONES DE PISOS, VIDRIOS, PUERTAS, VENTANAS, LAMPARAS Y DEMAS INSTALACIONES QUE PUDIERAN RESULTAR DAÑADAS EN EL PROCESO DE LA DEMOLICION.) HERRAMIENTAS, EQUIPO DE SEGURIDAD,  ANDAMIOS, MANO DE OBRA, ACARREO DEL PRODUCTO DE LA DEMOLICION  DENTRO Y FUERA DE LA OBRA Y LIMPIEZA DEL AREA DE TRABAJO.","M2 ","795.0000",0,"CERO PESOS 00/100 M.N.",0,394894]
[140083,"DEMOLICION DE APLANADOS DE 2.5 CMS. DE ESPESOR EN MUROS Y BOVEDAS  A CUALQUIER NIVEL, INCLUYE: (PROTECCIONES DE PISOS, VIDRIOS, PUERTAS, VENTANAS, LAMPARAS Y DEMAS INSTALACIONES QUE PUDIERAN RESULTAR DAÑADAS EN EL PROCESO DE LA DEMOLICION.) HERRAMIENTAS, EQUIPO DE SEGURIDAD,  ANDAMIOS, MANO DE OBRA, RETIRO Y ACARREO DE MATERIALES DE DESHECHO DENTRO Y FUERA DE LA OBRA ATIRADERO AUTORIZADO Y LIMPIEZA DEL AREA DE LOS TRABAJOS.","M2 ","95.0000",0,"CERO PESOS 00/100 M.N.",0,394895]
[140100,"DESMONTAJE, RETIRO Y DESCONECCION DE TABLERO DE CONTROL Y/O CENTRO DE CARGA SIN RECUPERACION, (NO UTILISABLE), INCLUYE: DESCONEXION, HERRAMIENTA, MANO DE OBRA CALIFICADA, LIMPIEZA Y ACARREOS DE MATERIALES DE RETIRO FUERA DE LA OBRA.","PZA","2.0000",0,"CERO PESOS 00/100 M.N.",0,394896]
[140108,"RETIRO DE VIDRIOS EXISTENTES CON RECUPERACION, ASENTADOS CON MASTIQUE Y/O SILICON EN CANCELERIA DE ALUMINIO, HERRERIA ESTRUCTURAL Y/O TUBULAR INCLUYE: HERRAMIENTAS, RETIRO DE SOBRANTES, LIMPIEZA  Y MANO DE OBRA ESPECIALIZADA.","M2 ","20.0000",0,"CERO PESOS 00/100 M.N.",0,394897]
[140114,"DESMONTAJE DE CANCELERIA DE ALUMINIO Y CRISTAL O PANEL DE AGLOMERADO, CON RECUPERACION, INCLUYE: RETIRO DE ELEMENTOS DE FIJACION, DESMONTAJE DE CRISTALES O PANEL DE SER NECESARIO, HERRAMIENTAS, LIMPIEZA DEL AREA DE TRABAJO, MANO DE OBRA ESPECIALIZADA Y ACARREO AL LUGAR DE SU ALMECENAMIENTO EN EL INTERIOR DEL PLANTEL.","M2 ","10.0000",0,"CERO PESOS 00/100 M.N.",0,394898]
[140123,"DESMANTELAR Y RETIRAR INSTALACION HIDRAULICA EXISTENTE. INCLUYE: HERRAMIENTA, MANO DE OBRA, LIMPIEZA DEL AREA DE TRABAJO, ACARREO DEL MATERIAL PRODUCTO DEL DESMANTELAMIENTO DENTRO Y FUERA DE LA OBRA.\n","SAL","23.0000",0,"CERO PESOS 00/100 M.N.",0,394899]
[140124,"DESMANTELAR Y RETIRAR INSTALACION SANITARIA EXISTENTE. INCLUYE:MANO DE OBRA, HERRAMIENTA, LIMPIEZA DEL AREA DE TRABAJO,  ACARREO DEL MATERIAL PRODUCTO DEL DESMANTELAMIENTO DENTRO Y FUERA DE LA OBRA.\n","SAL","30.0000",0,"CERO PESOS 00/100 M.N.",0,394900]
[140129,"DESINSTALACION DE MUEBLE DE BAÑO YA SEA INODORO, LAVABO, MINGITORIO,  ETC. SIN RECUPERACION  INCLUYE:  DESCONEXION, HERRAMIENTAS, MANO DE OBRA, LIMPIEZA Y ACARREO DEL MUEBLE FUERA DE LA OBRA.","PZA","23.0000",0,"CERO PESOS 00/100 M.N.",0,394901]
[140152,"DESMONTAJE DE CANCELERIA  DE PERFIL TUBULAR  CON RECUPERACION DE LAS MISMAS. PARA SU POSTERIOR COLOCACION, INCLUYE: DEMOLICION DE ANCLAJES ACARREO Y RETIRO FUERA DE OBRA DE MATERIAL PRODUCTO DE LA DEMOLICION, HERRAMIENTAS, MANO DE OBRA CALIFICADA Y ACOMODO DE LOS ELEMENTOS DE HERRERIA AL LUGAR QUE SE INDIQUE EN OBRA.","M2 ","20.0000",0,"CERO PESOS 00/100 M.N.",0,394902]
[140176,"DEMOLICION DE HORMIGON, IMPERMEABILIZANTE Y  ENLADRILLADO DE AZOTEA EN CUBIERTAS CON UN ESPESOR TOTAL DE 13 CM PROMEDIO, INCLUYE: HERRAMIENTA, EQUIPO NECESARIO, MANO DE OBRA, LIMPIEZA, ACARREO  Y RETIRO DE MATERIAL PRODUCTO DE LA DEMOLICION FUERA DE LA OBRA.\n","M2 ","121.3000",0,"CERO PESOS 00/100 M.N.",0,394903]
[140188,"DESMONTAJE Y RETIRO DE VIDRIOS Y/ O CRISTALES EXISTENTES SIN RECUPERACION, ASENTADOS CON MASTIQUE Y/O SILICON EN CANCELERIA DE HERRERIA ESTRUCTURAL Y TUBULAR INCLUYE: RETIRO DE JUNQUILLO, RETIRO Y LIMPIEZA DEL MATERIAL DE FIJACION, MANO DE OBRA, HERRAMIENTA, EQUIPO DE SEGURIDAD, ANDAMIOS, ACARREOS DENTRO Y FUERA DE LA OBRA DE MATERIAL, LIMPIEZA DEL AREA DE TRABAJO,","M2 ","20.0000",0,"CERO PESOS 00/100 M.N.",0,394904]
[140199,"DESMONTAJE DE PUERTAS Y MAMPARAS CON MARCO Y CONTRA MARCOS DE HERRERIA TUBULAR Y/O DE ALUMINIO EXISTENTES EN OBRA, SIN RECUPERACION, TRASLADO Y GUARDADO EN BODEGA O LUGAR INDICADO POR SUPERVISION. INCLUYE; ANTEPECHO, DEMOLICION DE ANCLAJES, ACARREO Y RETIRO FUERA DE OBRA DE MATERIAL PRODUCTO DE LA DEMOLICION, MANO DE OBRA CALIFICADA Y LIMPIEZA DEL AREA DE TRABAJO.","M2 ","40.0000",0,"CERO PESOS 00/100 M.N.",0,394905]
[140199,"DESMONTAJE DE PUERTAS Y MAMPARAS CON MARCO Y CONTRA MARCOS DE HERRERIA TUBULAR Y/O DE ALUMINIO EXISTENTES EN OBRA, SIN RECUPERACION, TRASLADO Y GUARDADO EN BODEGA O LUGAR INDICADO POR SUPERVISION. INCLUYE; ANTEPECHO, DEMOLICION DE ANCLAJES, ACARREO Y RETIRO FUERA DE OBRA DE MATERIAL PRODUCTO DE LA DEMOLICION, MANO DE OBRA CALIFICADA Y LIMPIEZA DEL AREA DE TRABAJO.","M2 ","471.0000",0,"CERO PESOS 00/100 M.N.",0,394906]
[140247,"DESCONEXION Y DESINSTALACION DE ALIMENTADORES ELECTRICOS EXISTENTES EN SALIDAS ELECTRICAS DE ALUMBRADO, APAGADORES Y/O CONTACTOS, CON RECUPERACION, INCLUYE: DESCONEXIONES, RETIRO Y ACARREOS EN EL INTERIOR DEL PLANTEL DEL CABLEADO PRODUCTO DE LA DESINSTALACION, GUIAS,  ANDAMIOS, HERRAMIENTA, MANO DE OBRA CALIFICADA Y LIMPIEZA DEL AREA DE TRABAJO. EN CUALQUIER NIVEL","SAL","5.0000",0,"CERO PESOS 00/100 M.N.",0,394907]
[140273,"DESINSTALACION Y RETIRO DE INTERRUPTORES TERMO MAGNETICOS DE TABLEROS EN MAL ESTADO, SIN RECUPERACION, INCLUYE: DESCONEXION, DESMONTAJE, HERRAMIENTA, MANO DE OBRA CALIFICADA, LIMPIEZA Y ACARREOS DE MATERIALES DE RETIRO FUERA DE LA OBRA.","PZA","5.0000",0,"CERO PESOS 00/100 M.N.",0,394908]
[140652,"DEMOLICION DE LOSA DE CONCRETO ARMADO RECUBIERTA DE AZULEJO A CUALQUIER NIVEL. INCLUYE: RETIRO DEL MATERIAL PRODUCTO DE LA DEMOLICION DENTRO Y  FUERA DE LA OBRA, HERRAMIENTA, MANO DE OBRA, Y LIMPIEZA DEL AREA DE TRABAJO.","M2 ","6.0000",0,"CERO PESOS 00/100 M.N.",0,394909]
[140663,"DEMOLICION DE PISO DE CONCRETO DE 10 CM. ESPESOR, INCLUYE:  CORTE CON DISCO PARA DELIMITAR AREA,MATERIAL, EQUIPO, HERRAMIENTA, ACARREOS Y RETIROS FUERA DE LA OBRA DEL MATERIAL PRODUCTO DE LA DEMOLICION.","M2 ","40.0000",0,"CERO PESOS 00/100 M.N.",0,394910]
[140694,"DEMOLICION DE PISO DE LOSETA DE CERAMICA, BARRO, CONCRETO Y/O SIMILAR, INCLUYE: RETIRO DE MATERIAL PRODUCTO DE LA DEMOLICION DENTRO Y FUERA DE LA OBRA,  DEMOLICION DEL ADHESIVO, LIMPIEZA, NIVELACION Y PREPARACION DE LA SUPERFICIE PARA RECIBIR EL NUEVO PISO, MANO DE OBRA Y HERRAMIENTA.","M2 ","2,486.0000",0,"CERO PESOS 00/100 M.N.",0,394911]
[140752,"DESINSTALAR Y RETIRAR VALVULAS HIDRAULICAS TIPO FLUXOMETRO  EXISTENTE, CON RECUPERACION, INCLUYE: LINEAS DE TUBERIA DE COBRE Y/O GALVANIZADO, HERRAMIENTAS, MANO DE OBRA, ACARREO DEL MATERIAL PRODUCTO DEL DESMANTELAMIENTO DENTRO Y FUERA DE LA OBRA.","PZA","13.0000",0,"CERO PESOS 00/100 M.N.",0,394912]
[140920,"RASPADO DE PINTURA VINILICA O DE ESAMALTE  EXISTENTE EN MUROS, BOVEDAS, TRABES Y COLUMNAS RETIRADAS A MANO CON CUÑA, ESPATULA Y CEPILLO, HACIENDO LIMPIEZA CON AIRE COMPRIMIDO, CONFORME A LOS CRITERIOS Y ESPECIFICACIONES VIGENTES EN RESTAURACION Y CONSERVACION DEL PATRIMONIO EDIFICADO DEL INAH. INCLUYE: ANDAMIOS, HERRAMIENTAS, LIMPIEZA, MANO DE OBRA, Y EQUIPO DE SEGURIDAD.\n","M2 ","300.0000",0,"CERO PESOS 00/100 M.N.",0,394913]
[907172,"PERFORACION Y RESANE DE MUROS Y/O TECHOS PARA PASO DE TUBERIA DE 1/2\" A 2 1/2\" DE DIAMETRO, CON MORTERO CEMENTO-ARENA DE RIO EN PROP. 1:4,, CON ACABADO IGUAL AL EXISTENTE,  INCLUYE: TRAZO, HERRAMIENTAS, MATERIALES,  MANO DE OBRA, RETIRO Y ACARREO DE MATERIALES DE DESHECHO DENTRO Y FUERA DE LA OBRA ATIRADERO AUTORIZADO Y LIMPIEZA DEL AREA DE LOS TRABAJOS.","PZA","4.0000",0,"CERO PESOS 00/100 M.N.",0,394914]
[929600,"DESMONTAJE DE LAMPARA EXISTENTE A CUALQUIER NIVEL. INCLUYE; DESCONEXION, GABINETE, BALASTRA, DESINSTALACION DE MATERIAL DE FIJACION, HERRAMIENTA, MANO DE OBRA, ACARREO DE MATERIAL PRODUCTO DE DESINSTALACION A LUGAR INDICADO POR SUPERVISION Y  LIMPIEZA DEL AREA DE TRABAJO","PZA","10.0000",0,"CERO PESOS 00/100 M.N.",0,394915]
[935417,"DEMOLICION EN FORMA MANUAL DE ELEMENTOS DE CONCRETO ARMARO.  (DADOS, CASTILLOS, DALAS, COLUMNAS, TRABES, ZAPATAS, LOSAS)  PROCURANDO NO DAÑAR EL ACERO DE REFUERZO. EXISTENTES, INCLUYE:  (PROTECCIONES DE PISOS, VIDRIOS, PUERTAS, VENTANAS, LAMPARAS Y DEMAS INSTALACIONES QUE PUDIERAN RESULTAR DAÑADAS EN EL PROCESO DE LA DEMOLICION.) HERRAMIENTAS, EQUIPO DE SEGURIDAD,  ANDAMIOS, MANO DE OBRA, ACARREO DEL PRODUCTO DE LA DEMOLICION  DENTRO Y FUERA DE LA OBRA, Y LIMPIEZA DEL AREA DE TRABAJO.","M3 ","1.9000",0,"CERO PESOS 00/100 M.N.",0,394916]
["EDFS.02(200)","ESTRUCTURA                                        ",null,null,null,null,{"$f":"TEXT(SUM(G47:G52), \"$ #,##0.00 ;\")","v":"$ 0.00 "}]
[210334,"CIMBRA DE MADERA,  ACABADO APARENTE, EN ESTRUCTURA (MUROS, COLUMNAS, TRABES Y LOSAS), CON CIMBRAPLAY DE 16 MM. INCLUYE: DESPERDICIO, HABILITADO, CIMBRADO Y DESCIMBRA, NIVELACION, PLOMEO MATERIAL, MANO DE OBRA , HERRAMIENTA, ACARREO DEL MATRIAL DENTRO Y FUERA DE LA OBRA.","M2 ","324.0000",0,"CERO PESOS 00/100 M.N.",0,394917]
[213020,"SUMINISTRO, HABILITADO, ARMADO Y COLOCACION DE ACERO DE REFUERZO FY=4,200 KG/CM2 (G.E.), DE CUALQUIER DIAMETRO , EN ESTRUCTURA, INCLUYE: MATERIALES, HABILITADO,  DOBLECES,  SILLETAS, ALAMBRE, GANCHOS, ESCUADRAS, TRASLAPES, SOLDADURA, DESPERDICIOS, HERRAMIENTAS, MANO DE OBRA Y ACARREO DE MATERIALES AL SITIO DE SU COLOCACION.","KG ","2,245.0000",0,"CERO PESOS 00/100 M.N.",0,394918]
[216464,"SUMINISTRO Y COLOCACION DE CONCRETO  HECHO EN OBRA CON REVOLVEDORA, F'C=250 KG/CM2, T.M.A.= 3/4\", R. N., EN ESTRUCTURAS Y LOSAS, INCLUYE: AFINE DE SUPERFICIE, ACABADO, COLADO, CURADO CON CURACRETO, VIBRADO, PRUEBAS DE RESISTENCIA, DESPERDICIO, HERRAMIENTAS, MANO DE OBRA Y ACARREO DE MATERIALES AL SITIO DE SU UTILIZACION. A CUALQUIER NIVEL.","M3 ","14.7000",0,"CERO PESOS 00/100 M.N.",0,394919]
[280090,"SUMINISTRO, HABILITADO Y MONTAJE DE ESTRUCTURA METALICA DE ACERO ASTMA-36 F'Y=2530 KG/CM2, SOLDADOS Y/O ATORNILLADOS, (PERFILES IPR. IPS, CPS, REDONDOS SOLIDO, SOLERAS Y PLACAS, ETC, DIFERENTES DIMENSIONES Y CALIBRES,) PARA COLUMNAS, ARMADURAS, TRABES Y VIGAS, INCLUYE: MATERIALES MENORES Y DE CONSUMO, TRAZO, CORTES, AJUSTES, DESPERDICIOS, ENDEREZADO, BISELADO, DESCALIBRES, BARRENOS, TORQUES, SOLDADURA, UNA PRUEBA RADIOGRAFICA Y/O LIQUIDOS PENETRANTES POR CADA 500 KG. DE ACERO, FLETES, PINTURA ANTICORROSIVA, MANO DE OBRA CALIFICADA, HERRAMIENTA, EQUIPO, FLETES, ELEVACIONES, ACARREOS DE MATERIALES AL SITIO DE SU COLOCACION, ACUALQUIER ALTURA.","KG ","8,600.0000",0,"CERO PESOS 00/100 M.N.",0,394920]
[919930,"SUMINISTRO Y COLOCACION DE ANCLA DE VARILLA DE REDONDA ROSCADA DE ACERO AL CARBON, HAS-E 1/2\" X 3\" A 4 1/2\" DE LONGITUD. MCA. HILTI, EN ELEMENTOS DE CONCRETO, FIJADA QUIMICAMENTE CON ADHESIVO EPOXICO HIT HY 200,   INCLUYE: TRAZO, PERFORACIONES CON EQUIPO ROTATORIO, EQUIPO, TUERCA, RONDANA, HERRAMIENTAS, LIMPIEZA, Y MANO DE OBRA.","PZA","1,105.0000",0,"CERO PESOS 00/100 M.N.",0,394921]
[954158,"SUMINISTRO Y COLOCACION DE ANCLA DE VARILLA DE REDONDA ROSCADA DE ACERO AL CARBON, HAS-E 1/2\" X 6\" A 10\" DE LONGITUD. MCA. HILTI, EN ELEMENTOS DE CONCRETO, FIJADA QUIMICAMENTE CON ADHESIVO EPOXICO HIT HY 200,   INCLUYE: TRAZO, PERFORACIONES CON EQUIPO ROTATORIO, EQUIPO, TUERCA, RONDANA, HERRAMIENTAS, LIMPIEZA, Y MANO DE OBRA.","PZA","160.0000",0,"CERO PESOS 00/100 M.N.",0,394922]
["EDFS.03(310)","MUROS, CADENAS, CASTILLOS Y REPIZONES.            ",null,null,null,null,{"$f":"TEXT(SUM(G54:G54), \"$ #,##0.00 ;\")","v":"$ 0.00 "}]
[916026,"PREPARACION DE LA SUPERFICIE EN MURO DE ADOBE PARA RECIBIR CADENA DE CONCRETO, NIVELANDO SUPERFICIE CON UNA PLANTILLA DE CONCRETO POBRE, F´C= 100 KG/CM2, DE 5 CM DE ESPESOR PROMEDIO, POR 50 CM DE ANCHO, DENTANDO LA SUPERFICIE PARA LA SUJECION DE LA CADENA, INCLUYE: MATERIALES, CIMBRA COMUN, DESIMBRADO, MANO DE OBRA, HERRAMIENTA, LIMPIEZA, ACARREOS DE MATERIALES AL SITIO DE SU COLOCACION, A CUALQUIER NIVEL.","ML ","2.0000",0,"CERO PESOS 00/100 M.N.",0,394923]
["EDFS.04(319)","ENTREPISOS, CUBIERTA Y ACABADOS DE AZOTEA         ",null,null,null,null,{"$f":"TEXT(SUM(G56:G57), \"$ #,##0.00 ;\")","v":"$ 0.00 "}]
[324228,"ZAVALETA EN AZOTEA CON LADRILLO DE AZOTEA DE 17 X 17 CMS., ASENTADO CON MORTERO CEMENTO-ARENA EN PROP. 1:3., INCLUYE: TRAZO, LECHADA DE CEMENTO GRIS, ARENA DE RIO CERNIDA Y COLOR ROJO TERRACOTA CON IMPERMEABILIZANTE INTEGRAL A RAZON DE 2 KG/SACO DE CEMENTO, DESPERDICIOS, HERRAMIENTAS, LIMPIEZA, MANO DE OBRA  Y ACARREO DE MATERIALES AL LUGAR DE SU UTILIZACION, A CUALQUIER NIVEL.","ML ","35.0000",0,"CERO PESOS 00/100 M.N.",0,394924]
[344016,"SUMINISTRO Y APLICACION DE IMPERMEABILIZANTE  ELASTOMERICO TERMO REFLEJANTE, (LIQUIDO AUTONIVELANTE DE ALTA  ELASTICIDAD), PARA SUPERFICIES HORIZONTALES, COLOR BLANCO, APLICANDO UNA CAPA DE IMPERMEABILIZANTE URELASTIC  400 AL, CON RENDIMIENTO DE 0.50 LTS/M2 , DEJANDO SECAR POR UN PERIODO DE 12 HRS. PARA APLICAR UNA 2DA. CAPA DE IMPERMEABILIZANTE  URELASTIC 400 AL, CON RENDIMIENTO DE 0.50 LTS/M2, INCLUYE:   MATERIALES, LIMPIEZA Y PREPARACION DE LA SUPERFICIE, IMPRIMACION DE LA SUPERFICIE CON PRIMARIO BARNIZ EPOXIDO TRANSPARENTE GUARDQUIM EPOXI 430 CLEAR, DILUIDO EN UN 50% CON GUARQUIM SOLVENTE EPOXI, CON UN RENDIMIENTO PROMEDIO DE 0.10 LTS/M2, CALAFATEO DE JUNTAS Y GRIETAS CON DUREFLEX 500 AL Y DUREFLEX 540 P., DESPERDICIOS, HERRAMIENTA, LIMPIEZA, MANO DE OBRA ESPECIALIZADA, EQUIPO DE SEGURIDAD Y ACARREO DE MATERIALES AL SITIO DE SU COLOCACION. GANTIA POR ESCRITO DE 10 AÑOS POR LA EMPRESA CONTRATISTA. EN CUALQUIER NIVEL.","M2 ","1,213.0000",0,"CERO PESOS 00/100 M.N.",0,394925]
["EDFS.05(355)","RECUBRIMIENTOS Y ACABADOS                         ",null,null,null,null,{"$f":"TEXT(SUM(G59:G66), \"$ #,##0.00 ;\")","v":"$ 0.00 "}]
[355002,"APLANADO DE MUROS Y/O TECHOS CON MORTERO CEMENTO-CAL-ARENA DE RIO EN PROP. 1:2:6 DE 2 CM. DE ESPESOR PROMEDIO, A PLOMO Y REGLA, CON ACABADO REPELLADO, INCLUYE: MATERIALES, DESPERDICIOS, ANDAMIOS, HERRAMIENTAS, PLOMEO, NIVELACION, REMATES, LIMPIEZA DEL AREA DE TRABAJO Y ACARREO DE MATERIALES AL SITIO DE SU UTILIZACION. A CUALQUIER NIVEL.\n","M2 ","95.0000",0,"CERO PESOS 00/100 M.N.",0,394926]
[355022,"APLANADO DE MUROS Y/O TECHOS CON MORTERO CEMENTO-CAL-ARENA DE RIO EN PROP. 1:2:6 DE 2 CM. DE ESPESOR PROMEDIO, A PLOMO Y REGLA, ACABADO APALILLADO FINO, INCLUYE: MATERIALES, DESPERDICIOS, ANDAMIOS, HERRAMIENTAS, PLOMEO, NIVELACION, REMATES, LIMPIEZA DEL AREA DE TRABAJO Y ACARREO DE MATERIALES AL SITIO DE SU UTILIZACION. A CUALQUIER NIVEL.\n","M2 ","550.0000",0,"CERO PESOS 00/100 M.N.",0,394927]
[357322,"BOQUILLAS EN PUERTAS Y VENTANAS, CON MORTERO CEMENTO-CAL-ARENA 1:2:6, INCLUYE: ANDAMIOS Y ACARREO DE MATERIALES AL SITIO DE SU UTILIZACION.","ML ","45.0000",0,"CERO PESOS 00/100 M.N.",0,394928]
[357352,"FILETES Y BOLEADOS, HECHOS CON MORTERO CEMENTO-CAL-ARENA EN PROPORCION 1:2:6, INCLUYE: DESPERDICIOS, ANDAMIOS Y ACARREO DE MATERIALES AL SITIO DE SU UTILIZACION, A CUALQUIER NIVEL.","ML ","380.0000",0,"CERO PESOS 00/100 M.N.",0,394929]
[358041,"SUMINISTRO Y COLOCACION DE LOSETA CERAMICA PARA MURO ( AZULEJO ), CON RECUBRIMIENTO ESMALTADO, DE 25 X 50 CM., MCA. INTERCERAMIC, LINEA SPA WHITE DE PRIMERA CALIDAD, ASENTADO CON PEGAZULEJO Y JUNTEDO CON JUNTEADOR DE COLOR, JUNTAS A HUESO, INCLUYE: TRAZO, CORTE, REMATES, ESCUADRE, DESPERDICIOS, DESPATINADO, EMBOQUILLADOS, CERTIFICADO DE CALIDAD, HERRAMIENTAS, MATERIALES, MANO DE OBRA, LIMPIEZA Y ACARREO DE MATERIALES AL SITIO DE SU UTILIZACION, A CUALQUIER NIVEL.","M2 ","95.0000",0,"CERO PESOS 00/100 M.N.",0,394930]
[359022,"SUMINISTRO Y APLICACION DE RECUBRIMIENTO EN MUROS Y PLAFONES DE PASTA TEXTURIZADA COREV O SIMILAR CON TERMINADO Y COLOR SIMILAR AL YA EXISTENTE EN OBRA (VER EN SITIO),, INCLUYE: DESPERDICIOS, EMBOQUILLADOS, FILETES, BOLEADOS, ANDAMIOS, HERRAMIENTA, MANO DE OBRA ESPECIALIZADA Y ACARREO DEL MATERIAL AL SITIO DE SU UTILIZACION, A CUALQUIER ALTURA.","M2 ","600.0000",0,"CERO PESOS 00/100 M.N.",0,394931]
[916034,"RESANADO DE GRIETAS EN MURO DE LADRILLO DE 2 A 4 MM DE ANCHO, A BASE DE SIKADUR-52, POR AMBAS CARAS DEL MURO, RELLENANDO LA TOTALIDAD DE LA GRIETA, A TODO EL ANCHO DEL MURO, INCLUYE: LIMPIEZA DE GRIETAS CON AIRE A PRESION, ACARREO DE MATERIALES HASTA EL SITIO DE SU UTILIZACION, HERRAMIENTA Y MANO DE OBRA.","ML ","14.6000",0,"CERO PESOS 00/100 M.N.",0,394932]
[934966,"RESANE EN MUROS CON MORTERO CEMENTO-CAL-ARENA 1:2:6, DE 2 CMS. DE ESPESOR POR HASTA 20 CMS. DE ANCHO, EN APLANADO EXISTENTE. INCLUYE: ANDAMIOS, HERRAMIENTAS, MATERIALES, MANO DE OBRA Y ACARREOS.","ML ","10.0000",0,"CERO PESOS 00/100 M.N.",0,394933]
["EDFS.06(372)","PISOS                                             ",null,null,null,null,{"$f":"TEXT(SUM(G68:G72), \"$ #,##0.00 ;\")","v":"$ 0.00 "}]
[344511,"SUMINISTRO Y COLOCACION DE JUNTA DE CONTRACCION ELASTOMERICA. EN PISOS CON UNA SECCION TRANSVERSAL DE 6 X 10 MM, A BASE DE SILICON DE COLOR PARA JUNTAS DE DILATACION, INCLUYE: LIMPIEZA DEL AREA A TRATAR, DESPERDICIOS Y ACARREO DEL MATERIAL AL SITIO DE SU COLOCACION.","ML ","130.0000",0,"CERO PESOS 00/100 M.N.",0,394934]
[372242,"FIRME DE CONCRETO F´C= 150 KG/CM2 TMA= 3/4\",  DE 8 CM DE ESPESOR, ACABADO APALILLADO. INCLUYE: TRAZO, NIVELACION, AFINE Y COMPACTACION DEL TERRENO, AGUA, MATERIALES, EXTENDIDO, REGLEADO, CURADO, DESPERDICIOS, HERRAMIENTAS, LIMPIEZA, MANO DE OBRA Y ACARREO DEL MATERIAL AL SITIO DE SU UTILIZACION","M2 ","48.0000",0,"CERO PESOS 00/100 M.N.",0,394935]
[373026,"PISO DE CONCRETO HECHO EN OBRA F'C=200 KG/CM2, TMA 3/4\", DE 10 CMS. DE ESPESOR, ACABADO RAYADO CON BROCHA, EN FORMA INTERGRAL, SIN UTILIZACION DE PASTA, COLADO A CUADROS, CON REFUERZO DE MALLA ELECTROSOLDADA 6-6 / 10-10, INCLUYE: TRAZO, NIVELACION, AFINE Y COMPACTACION DEL TERRENO, MATERIALES, CIMBRA DE FRONTERA, DESCIMBRA, DESPERDICIOS, CURADO, VIBRADO, MUESTREADO, JUNTAS FRIAS, VOLTEADOR,  HERRAMIENTAS, MANO DE OBRA Y ACARREOS DE MATERIALES AL SITIO DE SU UTILIZACION.","M2 ","40.0000",0,"CERO PESOS 00/100 M.N.",0,394936]
[376023,"SUMINISTRO Y COLOCACION DE PISO DE LOSETA CERAMICA DE 50 X 50 CM., MCA. INTERCERAMIC DE PRIMERA, LINEA SAYULITA, DE CUALQUIER COLOR, GRADO DE DUREZA (PEI) \"IV\" , ASENTADO CON PEGAPISO Y JUNTEDO CON JUNTEADOR DE COLOR, JUNTAS DE 4 MM. DE ANCHO, INCLUYE: TRAZO, CORTE, REMATES, ESCUADRE, DESPERDICIOS, DESPATINADO, EMBOQUILLADOS, CERTIFICADO DE CALIDAD, HERRAMIENTAS, MATERIALES, MANO DE OBRA, LIMPIEZA Y ACARREO DE MATERIALES AL SITIO DE SU UTILIZACION, A CUALQUIER ALTURA.","M2 ","1,950.0000",0,"CERO PESOS 00/100 M.N.",0,394937]
[376146,"SUMINISTRO Y COLOCACION DE CENEFA DE 15.00 CM APROXIMADAMENTE A BASE DE  PISO DE LOSETA CERAMICA DE PRIMERA, QUE DEBERA CUMPLIR CON LAS SIGUIENTES CARACTERISTICAS TECNICAS: ABSORCION <= 3% , COEFICIENTE DE ESTATICO DE FRICCION >= 0.5, MODULO DE RUPTURA >= 300 KG/CM², PEI, RESISTENCIA A LA ABRASION VISIBLE 1500 CICLOS (PEI IV), RESISTENTE AL MANCHADO, RESISTENCIA AL RAYADO >= 5.0 MOHS, RESISTENTE A LOS QUIMICOS, ASENTADO CON PEGA PISO Y JUNTEADO CON JUNTEADOR DE COLOR, CON JUNTAS DE 4.00 MM. DE ANCHO MINIMO. INCLUYE: HERRAMIENTAS, MATERIALES, TRAZO, CORTES,  NIVELACION,  LIMPIEZA, DESPERDICIOS, MANO DE OBRA Y ACARREO DE MATERIALES AL SITIO DE SU UTILIZACION.","ML ","31.2000",0,"CERO PESOS 00/100 M.N.",0,394938]
["EDFS.07(382)","ELEMENTOS COMPLEMENTARIOS DE ALBAÑILERIA          ",null,null,null,null,{"$f":"TEXT(SUM(G74:G75), \"$ #,##0.00 ;\")","v":"$ 0.00 "}]
[383022,"FORJADO DE BASE PARA VERTEDERO DE 0.40 X 0.40 X 0.40 M. MEDIDAS INTERIORES, FORJADA CON LADRILLO DE LAMA DE 14 CM. DE ESPESOR ASENTADO Y APLANADO CON MORTERO CEMENTO-ARENA DE RIO EN PROPORCION 1:3, RECUBIERTA CON AZULEJO DE 1RA. EN AREAS  EXTERIORES, INCLUYE: TRAZO, NIVELACION, PLOMEO, EMBOQUILLADO, ACARREO DE MATERIALES AL SITIO DE SU UTILIZACION, MANO DE OBRA Y HERRAMIENTA.","PZA","4.0000",0,"CERO PESOS 00/100 M.N.",0,394939]
[383312,"CANAL DE DESAGUE EN SANITARIOS, DE 12.0 X 12.0 CM DE SECCION INTERIOR, FORJADO CON CONCRETO F'C=150 KG/CM2, ACABADO COMUN, RECUBIERTO CON LOSETA CERAMICA DE PRIMERA CALIDAD IGUAL AL DEL AREA CONTIGUA, JUNTEADO CON JUNTEADOR DE COLOR, INCLUYE: ACARREO DE MATERIALES AL SITIO DE SU UTILIZACION, A CUALQUIER NIVEL.","ML ","16.0000",0,"CERO PESOS 00/100 M.N.",0,394940]
["EDFS.08(393)","PINTURA                                           ",null,null,null,null,{"$f":"TEXT(SUM(G77:G82), \"$ #,##0.00 ;\")","v":"$ 0.00 "}]
[393022,"PINTURA VINIL-ACRÍLICA A BASE DE AGUA ACABADO SEMIMATE  LAVABLE, PARA INTERIORES Y EXTERIORES QUE NO DESPRENDA VAPORES TÓXICOS NI OLORES DESAGRADABLES, CON LAS SIGUIENTES CARACTERÍSTICAS ( SÓLIDOS POR PESO 46-52%, SÓLIDOS POR VOLUMEN 30-36%, VISCOSIDAD DE 100-130 UK A 25°C, DENSIDAD > O = 1.2 TON/M3., LAVABILIDAD > O = 4,000 CICLOS, TIEMPO DE SECADO AL TACTO, 30-40 MIN., TIEMPO DE SECADO DURO < O = 8 HRS., CICLO DE CURADO DE 7 DIAS, PH 6-8, RENDIMIENTO EN SUP. LISA 8-10 M2/LT., FINEZA DE MOLIDO (HEGMAN) 3-7 UH.)  EN MUROS APLANADOS DE MEZCLA APALILLADO O PULIDO, TRABAJO TERMINADO, A DOS MANOS, INCLUYE: MATERIALES MENORES Y DE CONSUMO, ANDAMIOS, PREPARACION DE LA SUPERFICIE, SELLADO DE LA SUPERFICIE, HERRAMIENTAS, LIMPIEZA, MANO DE OBRA Y  ACARREOS DE MATERIALES AL SITIO DE SU UTILIZACIÓN.","M2 ","4,000.0000",0,"CERO PESOS 00/100 M.N.",0,394941]
[393122,"PINTURA DE ESMALTE ALQUIDALICO ANTICORROSIVO, ACABADO BRILLANTE, PARA INTERIORES Y EXTERIORES QUE NO DESPRENDA VAPORES TÓXICOS NI OLORES DESAGRADABLES, CON LAS SIGUIENTES CARACTERÍSTICAS ( SÓLIDOS POR PESO 49-60%, SÓLIDOS POR VOLUMEN 40-46%, VISCOSIDAD DE 110-160 UK A 25°C, DENSIDAD 0.9-1.2 TON/M3., BRILLO A 60°C, 90%, TIEMPO DE SECADO AL TACTO, < O = 6 HRS., TIEMPO DE SECADO DURO < O = 24 HRS., ADHERENCIA 100%, RENDIMIENTO EN SUP. LISA 8-10 M2/LT., DILUCIÓN MÁXIMA (AGUARRÁS, THINER), 15 %,  EN HERRERIA CERRADA (DUELA DE LAMINA ACANALADA), TRABAJO TERMINADO, A DOS MANOS, INCLUYE: MATERIALES MENORES Y DE CONSUMO, ANDAMIOS, PREPARACION DE LA SUPERFICIE, HERRAMIENTAS, LIMPIEZA, MANO DE OBRA Y  EQUIPO DE SEGURIDAD. A CUALQUIER NIVEL.","M2 ","30.0000",0,"CERO PESOS 00/100 M.N.",0,394942]
[393142,"PINTURA DE ESMALTE ALQUIDALICO ANTICORROSIVO, ACABADO BRILLANTE, PARA INTERIORES Y EXTERIORES QUE NO DESPRENDA VAPORES TÓXICOS NI OLORES DESAGRADABLES, CON LAS SIGUIENTES CARACTERÍSTICAS ( SÓLIDOS POR PESO 49-60%, SÓLIDOS POR VOLUMEN 40-46%, VISCOSIDAD DE 110-160 UK A 25°C, DENSIDAD 0.9-1.2 TON/M3., BRILLO A 60°C, 90%, TIEMPO DE SECADO AL TACTO, < O = 6 HRS., TIEMPO DE SECADO DURO < O = 24 HRS., ADHERENCIA 100%, RENDIMIENTO EN SUP. LISA 8-10 M2/LT., DILUCIÓN MÁXIMA (AGUARRÁS, THINER), 15 %,  EN HERRERIA ABIERTA DE PERFILES ESTRUCTURALES (PROTECCIONES), MEDIDA POR UN SOLO LADO, TRABAJO TERMINADO, A DOS MANOS, INCLUYE: MATERIALES MENORES Y DE CONSUMO, ANDAMIOS, PREPARACION DE LA SUPERFICIE, HERRAMIENTAS, LIMPIEZA, MANO DE OBRA Y  EQUIPO DE SEGURIDAD. A CUALQUIER NIVEL. (LA PINTURA ES POR AMBOS LADOS DE LA HERRERIA, PERO PARA SU PAGO ES MEDIDA SOLO POR 1 SOLO LADO).","M2 ","50.0000",0,"CERO PESOS 00/100 M.N.",0,394943]
[393325,"PINTURA DE ESMALTE ALQUIDALICO ANTICORROSIVO, ACABADO BRILLANTE, PARA INTERIORES Y EXTERIORES QUE NO DESPRENDA VAPORES TÓXICOS NI OLORES DESAGRADABLES, CON LAS SIGUIENTES CARACTERÍSTICAS ( SÓLIDOS POR PESO 49-60%, SÓLIDOS POR VOLUMEN 40-46%, VISCOSIDAD DE 110-160 UK A 25°C, DENSIDAD 0.9-1.2 TON/M3., BRILLO A 60°C, 90%, TIEMPO DE SECADO AL TACTO, < O = 6 HRS., TIEMPO DE SECADO DURO < O = 24 HRS., ADHERENCIA 100%, DILUCIÓN MÁXIMA (AGUARRÁS, THINER), 15 %,  EN BARANDAL METALICO, EN COLOR DE ACUERDO A INDICADO POR SUPERVISIÓN MEDIDO POR UN SOLO LADO, TRABAJO TERMINADO, A DOS MANOS, INCLUYE: MATERIALES MENORES Y DE CONSUMO, PREPARACION DE LA SUPERFICIE, ANDAMIOS, HERRAMIENTAS, LIMPIEZA, MANO DE OBRA Y  EQUIPO DE SEGURIDAD. CUALQUIER ALTURA..","M2 ","100.0000",0,"CERO PESOS 00/100 M.N.",0,394944]
[393811,"PINTURA DE ESMALTE ALQUIDALICO ANTICORROSIVO, ACABADO BRILLANTE, PARA INTERIORES Y EXTERIORES QUE NO DESPRENDA VAPORES TÓXICOS NI OLORES DESAGRADABLES, CON LAS SIGUIENTES CARACTERÍSTICAS ( SÓLIDOS POR PESO 49-60%, SÓLIDOS POR VOLUMEN 40-46%, VISCOSIDAD DE 110-160 UK A 25°C, DENSIDAD 0.9-1.2 TON/M3., BRILLO A 60°C, 90%, TIEMPO DE SECADO AL TACTO, < O = 6 HRS., TIEMPO DE SECADO DURO < O = 24 HRS., ADHERENCIA 100%, RENDIMIENTO EN SUP. LISA 8-10 M2/LT., DILUCIÓN MÁXIMA (AGUARRÁS, THINER), 15 %,  EN VIGAS, TRABES Y/O CERRAMIENTOS DE ESTRUCTURA METALICA  DE ACUERDO A SU DESARROLLO. TRABAJO TERMINADO, A DOS MANOS, INCLUYE: MATERIALES MENORES Y DE CONSUMO, ANDAMIOS, PREPARACION DE LA SUPERFICIE, HERRAMIENTAS, LIMPIEZA, MANO DE OBRA Y  EQUIPO DE SEGURIDAD. A CUALQUIER ALTURA.","M2 ","146.0000",0,"CERO PESOS 00/100 M.N.",0,394945]
[393814,"PINTURA DE ESMALTE ALQUIDALICO ANTICORROSIVO, ACABADO BRILLANTE, PARA INTERIORES Y EXTERIORES QUE NO DESPRENDA VAPORES TÓXICOS NI OLORES DESAGRADABLES, CON LAS SIGUIENTES CARACTERÍSTICAS ( SÓLIDOS POR PESO 49-60%, SÓLIDOS POR VOLUMEN 40-46%, VISCOSIDAD DE 110-160 UK A 25°C, DENSIDAD 0.9-1.2 TON/M3., BRILLO A 60°C, 90%, TIEMPO DE SECADO AL TACTO, < O = 6 HRS., TIEMPO DE SECADO DURO < O = 24 HRS., ADHERENCIA 100%, RENDIMIENTO EN SUP. LISA 8-10 M2/LT., DILUCIÓN MÁXIMA (AGUARRÁS, THINER), 15 %,  COLUMNAS DE PERFILES ESTRUCTURALES DE ACERO (OC, PTR, OR, \"I\", PLACAS, CPS, TUBULARES, ETC), TRABAJO TERMINADO, A DOS MANOS, INCLUYE: MATERIALES MENORES Y DE CONSUMO, ANDAMIOS, PREPARACION DE LA SUPERFICIE, HERRAMIENTAS, LIMPIEZA, MANO DE OBRA Y  EQUIPO DE SEGURIDAD. A CUALQUIER NIVEL. (DESARROLLO DEL AREA A TRATAR DE ACUERDO AL PERFIL DEL ELEMENTO).","M2 ","60.0000",0,"CERO PESOS 00/100 M.N.",0,394946]
["EDFS.09(396)","LIMPIEZA                                          ",null,null,null,null,{"$f":"TEXT(SUM(G84:G88), \"$ #,##0.00 ;\")","v":"$ 0.00 "}]
[396022,"LIMPIEZA EN PISO DE CERAMICA, CON AGUA Y JABON.","M2 ","48.0000",0,"CERO PESOS 00/100 M.N.",0,394947]
[396032,"LIMPIEZA DE RECUBRIMIENTOS VIDRIADOS EN MUROS, CON JABON, AGUA Y ACIDO MURIATICO AL 10 %.","M2 ","95.0000",0,"CERO PESOS 00/100 M.N.",0,394948]
[396042,"LIMPIEZA DE VIDRIOS CON AGUA Y JABON, 2 CARAS.","M2 ","15.0000",0,"CERO PESOS 00/100 M.N.",0,394949]
[396132,"LIMPIEZA EN MUROS DE LADRILLO O BLOCK APARENTE, CON AGUA Y ACIDO MURIATICO AL 10%.","M2 ","295.0000",0,"CERO PESOS 00/100 M.N.",0,394950]
[396222,"LIMPIEZA DE MUEBLES DE BAÑO, CON AGUA Y JABON.","PZA","21.0000",0,"CERO PESOS 00/100 M.N.",0,394951]
["EDFS.10(410)","CANCELERIA, HERRERIA, ALUMINIO, VIDRIOS Y CHAPAS  ",null,null,null,null,{"$f":"TEXT(SUM(G90:G99), \"$ #,##0.00 ;\")","v":"$ 0.00 "}]
[412041,"FABRICACION, SUMINISTRO Y COLOCACION DE PROTECCIONES PARA VENTANERIA A BASE DE HERRERIA ESTRUCTURAL DE ACERO, ELABORADA CON UN PERFIL PERIMETRAL DE ANGULO DE 1 1/2\" X 1 1/2\" X 3/16\",  HORIZONTALES DE REDONDO SOLIDO LISO DE 1/2\" SEPARADOS  DE C. A C. 11.5 CM. PROMEDIO Y REFUERZOS VERTICALES DE SOLERA DE 3/16\" X 1 1/4\" COLOCADOS A @ 73.5 CM. PROMEDIO, CON PERFORACIONES PARA INSERCION DE REDONDOS. ANCLADA A ESTRUCTURA (CONSTRUCCION) A BASE DE TORNILLO CON BARRENANCLA Y/O SOLDADURA,  INCLUYE: TRAZO, CORTES, SOLDADURA, NIVELACION, PLAMEO, PERFORACIONES, PINTURA DE TALLER,  AJUSTES Y DETALLES REALIZADOS EN OBRA DE ACUERDO A LO CONSTRUIDO,  ACARREOS, LIMPIEZA, MATERIALES, DESPERDICIOS, HERRAMIENTAS, EQUIPOS, MANO DE OBRA CALIFICADA Y ACARREO DE MATERIALES AL SITIO DE SU COLOCACION. EN CUALQUIER NIVEL.","M2 ","38.0000",0,"CERO PESOS 00/100 M.N.",0,394952]
[412082,"REPARACION Y COLOCACION DE CANCELERIA DE ALUMINIO Y/O HERRERIA EXISTENTE INCLUYE: CORTES, SOLDADURA, REPOSICION DE MATERIAL DAÑADO COMO MOSQUITEROS, CELOSIAS, ADECUACIONES MATERIAL, EQUIPO DE CORTE, SOLDADORA, EQUIPO DE SEGURIDAD, PINTURA ANTICORROSIVA  MANO DE OBRA CALIFICADA Y TODO LO NECESARIO PARA SU CORRECTA EJECUCION.\n","M2 ","40.0000",0,"CERO PESOS 00/100 M.N.",0,394953]
[412084,"REPARACION Y COLOCACION DE HERRERIA EXISTENTE INCLUYE: RETIRO DE HERRERIA, CORTES. SOLDADURA, REPOSICION DE MATERIAL DAÑADO ADECUACIONES, MATERIAL MENOR, PASTA, EQUIPO DE CORTE, SOLDADURA, REPOSICION Y FIJACION DE PASADORES, SUJECIONES A MURO CON MORTERO CEMENTO-ARENA 1:3 Y/O ELEMENTOS METALICOS, CON SOLDADURA ELECTRICA, HERRAMIENTA Y MANO DE OBRA. \n","M2 ","10.0000",0,"CERO PESOS 00/100 M.N.",0,394954]
[420022,"SUMINISTRO, HABILITADO Y COLOCACION DE CANCELERIA FABRICADA  EN ALUMINIO ANODIZADO NATURAL CON PERFILES COMERCIALES DE 2\" X 1.25\",  MCA. CUPRUM ,  LINEA PANORAMA O SIMILAR, INCLUYE: TRAZO, CORTES, AJUSTES, MATERIALES, CORREDERAS, JALADERAS, OPERADORES, REPISON, SELLADO PERIMETRAL, SILICON, VINIL, HERRAJES, ELEMENTOS DE FIJACION, MATERIALES MENORES Y DE CONSUMO, DESPERDICIOS, HERRAMIENTAS, MANO DE OBRA ESPECIALIZADA, LIMPIEZA, FLETES, EQUIPO Y ACARREO DE MATERIALES AL SITIO DE SU COLOCACION, A CUALQUIER NIVEL.","M2 ","355.0000",0,"CERO PESOS 00/100 M.N.",0,394955]
[422028,"SUMINISTRO Y COLOCACION DE PUERTA PREFABRICADA, CON MEDIDAS GENERALES DE 1.00 X 2.10 MTS.,  MCA. PORCELTECH O SIMILAR EN GARANTIA Y CALIDAD. MOD. BETA, TIPO TAMBOR DE 36 MM. DE ESPESOR, FABRICADA CON BASTIDOR DE PERFIL TUBULAR  GALVANIZADP DE 1 1/4\" , NUCLEO RELLENO CON PANEL HONEY COMB DE 1 3/8\" DE ESPESOR Y DOBLE CARA (INTERIOR-EXTERIOR) DE  LAMINA DE ACERO PORCELANIZADO CAL. 24,  EN COLOR INDICADO POR LA SUPERVISION Y CUBRECANTOS DE ALUMINIO ANODIZADO NATURAL , MARCO Y ANTEPECHO DE HERRERIA TUBULAR DE PERFILES COMERCIALES DE 3\" X 1 1/2\" CAL 14., TOPE DE ANGULO DE 3/4\" X 1/8\", INCLUYE: VENTANA (MIRILLA) CIRCULAR DE CRISTAL CLARO DE 6 MM. CON MEDIDA ESTANDAR, MARCO, HERRAJES, BISAGRAS, NIVELACION, PLOMEO, ELEMENTOS DE FIJACION, MATERIALES MENORES Y DE CONSUMO, SELLADO PERIMETRAL, HERRAMIENTAS, LIMPIZA, MANO DE OBRA, FLETES Y ACARREOS DE MATERIALES AL SITIO DE SU COLOCACION, EN CUALQUIER NIVEL.\n","PZA","26.0000",0,"CERO PESOS 00/100 M.N.",0,394956]
[424094,"SUMINISTRO Y COLOCACION DE CERRADURA TIPO EUROPEO PARA PUERTA EXTERIOR, MCA. JAKO, MOD. KIT9001ENT, FABRICADA EN ACERO INOXIDABLE CON ACABADO SATINADO, DOBLE MANIJA DE PERFIL TUBULAR REDONDO Y CILINDRO LLAVE-MARIPOSA, INCLUYE: TRAZO, TALADROS, ELEMENTOS DE FIJACION, HERRAMIENTAS, CILINDRO, CHAPETÓN, LLAVES, LIMPIEZA,  MANO DE OBRA Y  ACARREO DE MATERIAL AL SITIO DE SU UTILIZACION.","PZA","6.0000",0,"CERO PESOS 00/100 M.N.",0,394957]
[424322,"SUMINISTRO Y COLOCACION DE TOPES DE PISO PARA PUERTA. INC.: ACARREO DE MATERIAL AL SITIO DE SU UTILIZACION, A CUALQUIER NIVEL.","PZA","6.0000",0,"CERO PESOS 00/100 M.N.",0,394958]
[426010,"SUMINISTRO Y COLOCACION DE CRISTAL FLOTADO DE 6 MM. DE ESPESOR,  ASENTADO CON SILICON, INCLUYE: CORTES, DESPERDICIOS Y ACARREO DE MATERIALES AL SITIO DE SU UTILIZACION A CUALQUIER NIVEL.","M2 ","330.0000",0,"CERO PESOS 00/100 M.N.",0,394959]
[426525,"SUMINISTRO Y COLOCACION DE ESPEJO DE CRISTAL FLOTADO DE 6 MM. CON MARCO DE ALUMINIO ANODIZADO NATURAL DE 1 1/2\", INCLUYE: MATERIALES MENORES Y DE CONSUMO,  ELEMENTOS DE FIJACION, MARCO DE ALUMINIO, VINILO, PIJAS, HERRAMIENTAS, LIMPIEZA Y MANO DE OBRA ESPECIALIZADA.","M2 ","1.8000",0,"CERO PESOS 00/100 M.N.",0,394960]
[907361,"SUMINISTRO Y COLOCACION DE PUERTAS Y/O  MAMPARAS MCA.  MODUMEX, LINEA LEEDER,  MODELO ESTANDAR, FABRICADAS CON CAPAS DE FIBRA CELULOSA, PAPEL DECORATIVO Y RESINAS,  BAJO UN PROCESO DE LAMINADO PLASTICO DE ALTA PRESION, CON UN ESPESOR TOTAL DE 12.7 MM. , CON ACABADO ANTI GRAFFITI,  EN COLOR INDICADO EN OBRA POR LA SUPERVISION,  INCLUYE: HERRAJES, PASADORES CON AVISO DE VACANTE Y OCUPADO, BISAGRAS, TOPES, JALADERAS, SOPORTES INFERIORES PARA PILASTRA REDONDOS DE ACERO INOXIDABLE CAL. 12 Y CAPUCHON DE NYLON,  DESPERDICIOS, AJUSTES,  MATERIALES DE FIJACION, MANO DE OBRA ESPECIALIZADA, HERRAMIENTAS, MANO DE OBRA, LIMPIEZA Y ACARREO DE MATERIALES AL SITIO DE SU UTILIZACION. (AREA EFECTIVA DE LA MAMPARA)","M2 ","31.0000",0,"CERO PESOS 00/100 M.N.",0,394961]
["EDFS.11(510)","INSTALACION ELECTRICA EN EDIFICIO                 ",null,null,null,null,{"$f":"TEXT(SUM(G101:G143), \"$ #,##0.00 ;\")","v":"$ 0.00 "}]
[412001,"PUNTOS DE SOLDADURA EN ELEMENTOS DE ACERO Y HERRERIA, INCLUYE: HERRAMIENTAS, EQUIPO, MATERIALES, Y ,MANO DE OBRA.","PZA","8.0000",0,"CERO PESOS 00/100 M.N.",0,394962]
[514011,"SALIDA ELECTRICA DE CENTRO AISLADA, VISIBLE, CON TUBERIA Y CONEXIONES CONDUIT GALVANIZADA P.G., ROSCADA DE 13 Y 19 MM. DE DIAMETRO, CABLE VINANEL THW-LS 600 V. A 75° C, 90° C, MARCA CONDUCTORES MONTERREY, (VIAKON-PROTOCOLIZADO), CABLE VINANEL 21 THW-LS 600 V. A 75° C, 90° C, MARCA CONDUMEX (CONDUMEX PROTOCOLIZADO).  CALIBRE 12, CAJAS CUADRADAS, CHALUPAS Y TAPAS GALVANIZADAS, INCLUYE: TRAZO, MATERIALES MENORES Y DE FIJACION, HERRAMIENTA, MANO DE OBRA ESPECIALIZADA , CONEXIONES, LIMPIEZA DEL AREA DE TRABAJO, PRUEBAS, DESPERDICIOS Y ACARREO DEL MATERIAL AL SITIO DE SU COLOCACION, A CUALQUIER NIVEL.","SAL","5.0000",0,"CERO PESOS 00/100 M.N.",0,394963]
[516018,"SALIDA ELECTRICA DE FUERZA PARA VENTILADOR DE TECHO, VISIBLE, CON TUBERIA Y CONEXIONES CONDUIT GALVANIZADA PARED DELGADA DE AJUSTE ETIQUETA VERDE DE 13 Y 19 MM. DE DIAMETRO, CABLE VINANEL THW-LS 600 V. A 75° C, 90° C, MARCA CONDUCTORES MONTERREY, (VIAKON-PROTOCOLIZADO), CABLE VINANEL 21 THW-LS 600 V. A 75° C, 90° C, MARCA CONDUMEX (CONDUMEX PROTOCOLIZADO).  CALIBRE, 12  Y 14, CON TAPA, INCLUYE: TRAZO,  MATERIALES MENORES Y DE CONSUMO, ELEMENTOS DE FIJACION,  HERRAMIENTA, ANDAMIOS, CONEXIONES, MANO DE OBRA ESPECIALIZADA, LIMPIEZA DEL AREA DE TRABAJO, PRUEBAS, DESPERDICIOS Y ACARREO DEL MATERIAL AL SITIO DE SU COLOCACION, A CUALQUIER ALTURA.","SAL","5.0000",0,"CERO PESOS 00/100 M.N.",0,394964]
[518125,"SALIDA ELECTRICA PARA CONTACTO DUPLEX POLARIZADO, VISIBLE CON TUBERIA Y CONEXIONES CONDUIT GALVANIZADA P.G. ETIQUETA VERDE DE AJUSTE DE 13 Y 19 MM. DE DIAMETRO CABLE VINANEL THW-LS 600 V. A 75° C, 90° C, MARCA CONDUCTORES MONTERREY, (VIAKON-PROTOCOLIZADO), CABLE VINANEL 21 THW-LS 600 V. A 75° C, 90° C, MARCA CONDUMEX (CONDUMEX PROTOCOLIZADO) CALIBRE CAL. 12 EN FASES Y CAL. 12 PARA TIERRA FISICA, CAJAS DE REGISTRO CUADRADAS, CHALUPAS Y TAPAS DE ACERO GALVANIZADO TIPO REFORZADO, CONTACTO QUINZIÑO MX, TAPA DE ALUMINIO, INCLUYE: TRAZO, CONEXIONES A TIERRA, MATERIALES MENORES, PRUEBAS, DESPERDICIOS, LIMPIEZA, HERRAMIENTAS, MANO DE OBRA Y ACARREO DEL MATERIAL AL SITIO DE SU COLOCACION A CUALQUIER NIVEL.","SAL","10.0000",0,"CERO PESOS 00/100 M.N.",0,394965]
[518211,"SUMINISTRO Y COLOCACION DE CONDULET LB, LF, T, TB O LR, DE 2\" DE DIAM., OVALADO, MARCA C. HINDS, INCLUYE: TAPA Y EMPAQUE DE NEOPRENO, SOPORTE, FIJACION, ALINEACION, MATERIALES MENORES, MANO DE OBRA ESPECIALIZADA, HERRAMIENTA, PRUEBAS, FLETES Y ACARREO DE LOS MATERIALES AL SITIO DE SU UTILIZACION.","PZA","1.0000",0,"CERO PESOS 00/100 M.N.",0,394966]
[518212,"SUMINISTRO Y COLOCACION DE CONDULET LB, LF, T, TB O LR, DE 3/4\" DE DIAM., OVALADO, MARCA C. HINDS, INCLUYE: TAPA Y EMPAQUE DE NEOPRENO, SOPORTE, FIJACION, ALINEACION, MATERIALES MENORES, MANO DE OBRA ESPECIALIZADA, HERRAMIENTA, PRUEBAS, FLETES Y ACARREO DE LOS MATERIALES AL SITIO DE SU UTILIZACION.","PZA","3.0000",0,"CERO PESOS 00/100 M.N.",0,394967]
[518213,"SUMINISTRO Y COLOCACION DE CONDULET LB, LF, T, TB O LR, DE 1\" DE DIAM., OVALADO, MARCA C. HINDS, INCLUYE: TAPA Y EMPAQUE DE NEOPRENO, SOPORTE, FIJACION, ALINEACION, MATERIALES MENORES, MANO DE OBRA ESPECIALIZADA, HERRAMIENTA, PRUEBAS, FLETES Y ACARREO DE LOS MATERIALES AL SITIO DE SU UTILIZACION.","PZA","2.0000",0,"CERO PESOS 00/100 M.N.",0,394968]
[518217,"SUMINISTRO Y COLOCACION DE CONDULET LB O LR, DE 2 1/2\" DE DIAM., OVALADO, MARCA C. HINDS, INCLUYE: MANO DE OBRA, HERRAMIENTA, MATERIALES MENORES, PRUEBAS Y ACARREO DE MATERIALES HASTA EL SITIO DE SU COLOCACION.","PZA","1.0000",0,"CERO PESOS 00/100 M.N.",0,394969]
[518219,"SUMINISTRO Y COLOCACION DE CONDULET LB, LF, T, TB O LR, DE 1 1/2\" DE DIAM., OVALADO, MARCA C. HINDS, INCLUYE: MANO DE OBRA, HERRAMIENTA, MATERIALES MENORES, PRUEBAS Y ACARREO DE MATERIALES HASTA EL SITIO DE SU COLOCACION.","PZA","1.0000",0,"CERO PESOS 00/100 M.N.",0,394970]
[518221,"SUMINISTRO Y COLOCACION DE CONDULET LB, LF, T, TB O LR, DE 1 1/4\" DE DIAM., OVALADO, MARCA C. HINDS, INCLUYE: TAPA Y EMPAQUE DE NEOPRENO, SOPORTE, FIJACION, ALINEACION, MATERIALES MENORES, MANO DE OBRA ESPECIALIZADA, HERRAMIENTA, PRUEBAS, FLETES Y ACARREO DE LOS MATERIALES AL SITIO DE SU UTILIZACION.","PZA","3.0000",0,"CERO PESOS 00/100 M.N.",0,394971]
[522063,"SALIDA ELECTRICA DE APAGADOR SENCILLO, VISIBLE, CON TUBERIA Y CONEXIONES CONDUIT GALVANIZADA PARED DELGADA DE AJUSTE, ETIQUETA VERDE, DE 13 Y 19 MM. DE DIAMETRO, CONDULET SERIE OVALADA TIPO \"T\", \"L\" Y \"C\" EN SU TRAYECTORIA Y FS EN LA SALIDA, CABLE VINANEL THW-LS 600 V. A 75° C, 90° C, MARCA CONDUCTORES MONTERREY, (VIAKON-PROTOCOLIZADO), CABLE VINANEL 21 THW-LS 600 V. A 75° C, 90° C, MARCA CONDUMEX (CONDUMEX PROTOCOLIZADO). CALIBRES 12,  ACCESORIOS MCA. BTICINO, LINEA  QUINZIÑO MX,  INCLUYE: TRAZO, CONEXIONES, MATERIALES MENORES Y DE COSNSUMO, ELEMENTOS DE FIJACION, ACCESORIOS, PRUEBAS, DESPERDICIOS, HERRAMIENTAS, ANDAMIOS,  LIMPIEZA, MANO DE OBRA ESPECIALIZADA Y ACARREO DEL MATERIAL AL SITIO DE SU COLOCACION, A CUALQUIER ALTURA.","SAL","10.0000",0,"CERO PESOS 00/100 M.N.",0,394972]
[522423,"SALIDA ELECTRICA PARA  CONTROL DE VENTILADOR, VISIBLE, CON TUBERIA Y CONEXIONES CONDUIT GALVANIZADA PARED DELGADA DE AJUSTE, ETIQUETA VERDE, DE 13 Y 19 MM. DE DIAMETRO,  CABLE VINANEL THW-LS 600 V. A 75° C, 90° C, MARCA CONDUCTORES MONTERREY, (VIAKON-PROTOCOLIZADO), CABLE VINANEL 21 THW-LS 600 V. A 75° C, 90° C, MARCA CONDUMEX (CONDUMEX PROTOCOLIZADO).  CALIBRE 12 Y 14, INCLUYE: CODOS, COPLES, CAJA CUADRADA, DESPERDICIOS, ACCESORIOS, TAPA GALVANIZADA,  CONTROL, TAPA , MATERIALES DE FIJACION, MANO DE OBRA, HERRAMIENTAS, Y ACAREO DE MATERIALES AL SITIO DE SU COLOCACION ACUALQUIER ALTURA.","SAL","5.0000",0,"CERO PESOS 00/100 M.N.",0,394973]
[524521,"SALIDA ELECTRICA DE FUERZA PARA BOMBA, OCULTA,  CON TUBERIA Y CONEXIONES CONDUIT DE PVC. PESADO DE 13 MM. DE DIAMETRO, CABLE VINANEL THW-LS 600 V. A 75° C, 90° C, MARCA CONDUCTORES MONTERREY, (VIAKON-PROTOCOLIZADO), CABLE VINANEL 21 THW-LS 600 V. A 75° C, 90° C, MARCA CONDUMEX (CONDUMEX PROTOCOLIZADO).  CALIBRE 12 EN FASES Y 12 EN TIERRA FISICA, CAJAS DE REGISTRO  CUADRADAS, CHALUPAS Y TAPAS DE PVC REFORZADO, TAPA DE ALUMINIO, INCLUYE: TRAZO, RANURAS, CONEXION A TIERRA, ACCESORIOS, MATERIALES MENORES Y DE CONSUMO, PRUEBAS, DESPERDICIOS Y ACARREO DEL MATERIAL AL SITIO DE SU COLOCACION, A CUALQUIER NIVEL.","SAL","1.0000",0,"CERO PESOS 00/100 M.N.",0,394974]
[532227,"SUMINISTRO Y COLOCACION DE CURVA CONDUIT GALVANIZADA DE AJUSTE DE 19 MM. DE DIAMETRO, INCLUYE: MATERIALES MENORES, PRUEBAS, CORTE, AJUSTES, DESPERDICIOS, HERRAMIENTAS, MANO DE OBRA Y ACARREO DE LOS MATERIALES AL SITIO DE SU COLOCACION.","PZA","3.0000",0,"CERO PESOS 00/100 M.N.",0,394975]
[532228,"SUMINISTRO Y COLOCACION DE CURVA CONDUIT GALVANIZADA DE AJUSTE DE 25 MM. DE DIAMETRO, INCLUYE: MATERIALES MENORES, PRUEBAS, CORTE, AJUSTES, DESPERDICIOS, HERRAMIENTAS, MANO DE OBRA Y ACARREO DE LOS MATERIALES AL SITIO DE SU COLOCACION.","PZA","2.0000",0,"CERO PESOS 00/100 M.N.",0,394976]
[532231,"SUM. Y COL. DE CURVA CONDUIT GALVANIZADA DE AJUSTE DE 51 MM. DE DIAMETRO, INCLUYE: MATERIALES MENORES, PRUEBAS, CORTE, AJUSTES, DESPERDICIOS, HERRAMIENTAS, MANO DE OBRA Y ACARREO DE LOS MATERIALES AL SITIO DE SU COLOCACION.","PZA","3.0000",0,"CERO PESOS 00/100 M.N.",0,394977]
[532232,"SUM. Y COL. DE CURVA CONDUIT GALVANIZADA DE AJUSTE DE 32 MM. DE DIAMETRO, INCLUYE: MATERIALES MENORES, PRUEBAS, CORTE, AJUSTES, DESPERDICIOS, HERRAMIENTAS, MANO DE OBRA Y ACARREO DE LOS MATERIALES AL SITIO DE SU COLOCACION.","PZA","3.0000",0,"CERO PESOS 00/100 M.N.",0,394978]
[532234,"SUMINISTRO Y COLOCACION DE CURVA CONDUIT GALVANIZADA DE AJUSTE DE 38 MM. DE DIAMETRO, INCLUYE: MATERIALES MENORES,  AJUSTES, DESPERDICIOS, HERRAMIENTAS, MANO DE OBRA Y ACARREO DE LOS MATERIALES AL SITIO DE SU COLOCACION.","PZA","1.0000",0,"CERO PESOS 00/100 M.N.",0,394979]
[534120,"SUMINISTRO Y COLOCACION DE TUBO CONDUIT GALVANIZADO, DE 25 MM, PARED DELGADA DE AJUSTE ETIQUETA VERDE, INCLUYE: TRAZO, CORTES, AJUSTES, CONECTORES, COPLES, CURVAS, DOBLECES, DESPERDICIOS, MATERIALES MENORES, HERRAMIENTAS, PRUEBAS, LIMPIEZA, MANO DE OBRA Y ACARREO DE MATERIALES AL SITIO DE SU COLOCACION.","ML ","12.0000",0,"CERO PESOS 00/100 M.N.",0,394980]
[534122,"SUMINISTRO Y COLOCACION DE TUBO CONDUIT GALVANIZADO, DE 19 MM, PARED DELGADA DE AJUSTE ETIQUETA VERDE, INCLUYE: TRAZO, CORTES, AJUSTES, CONECTORES, COPLES, CURVAS, DOBLECES, DESPERDICIOS, MATERIALES MENORES, HERRAMIENTAS, PRUEBAS, LIMPIEZA, MANO DE OBRA Y ACARREO DE MATERIALES AL SITIO DE SU COLOCACION.","ML ","10.0000",0,"CERO PESOS 00/100 M.N.",0,394981]
[534124,"SUMINISTRO Y COLOCACION DE TUBO CONDUIT GALVANIZADO, DE 32 MM, PARED DELGADA DE AJUSTE ETIQUETA VERDE, INCLUYE: TRAZO, CORTES, AJUSTES, CONECTORES, COPLES, CURVAS, DOBLECES, DESPERDICIOS, MATERIALES MENORES, HERRAMIENTAS, PRUEBAS, LIMPIEZA, MANO DE OBRA Y ACARREO DE MATERIALES AL SITIO DE SU COLOCACION.","ML ","10.0000",0,"CERO PESOS 00/100 M.N.",0,394982]
[534126,"SUMINISTRO Y COLOCACION DE TUBO CONDUIT GALVANIZADO, DE 38 MM, PARED DELGADA DE AJUSTE ETIQUETA VERDE, INCLUYE: TRAZO, CORTES, AJUSTES, CONECTORES, COPLES,  DOBLECES, DESPERDICIOS, MATERIALES MENORES, HERRAMIENTAS, PRUEBAS, LIMPIEZA, MANO DE OBRA Y ACARREO DE MATERIALES AL SITIO DE SU COLOCACION.","ML ","6.0000",0,"CERO PESOS 00/100 M.N.",0,394983]
[534128,"SUMINISTRO Y COLOCACION DE TUBO CONDUIT GALVANIZADO, DE 51 MM, PARED DELGADA DE AJUSTE ETIQUETA VERDE, INCLUYE: TRAZO, CORTES, AJUSTES, CONECTORES, COPLES, DOBLECES, DESPERDICIOS, MATERIALES MENORES, HERRAMIENTAS, PRUEBAS, LIMPIEZA, MANO DE OBRA Y ACARREO DE MATERIALES AL SITIO DE SU COLOCACION.","ML ","10.0000",0,"CERO PESOS 00/100 M.N.",0,394984]
[534129,"SUMINISTRO Y COLOCACION DE TUBO CONDUIT GALVANIZADO, DE 64 MM, PARED DELGADA DE AJUSTE ETIQUETA VERDE, INCLUYE: TRAZO, CORTES, AJUSTES, CONECTORES, COPLES, DOBLECES, DESPERDICIOS, MATERIALES MENORES, HERRAMIENTAS, PRUEBAS, LIMPIEZA, MANO DE OBRA Y ACARREO DE MATERIALES AL SITIO DE SU COLOCACION.","ML ","6.0000",0,"CERO PESOS 00/100 M.N.",0,394985]
[540012,"SUMINISTRO Y COLOCACION DE CENTRO DE CARGAS TIPO QOD-2, MCA. SQUARE D, INCLUYE: ELEMENTOS DE FIJACION,  PRUEBAS, MATERIALES MENORES Y DE CONSUMO, CONEXIONES, LIMPIEZAS, HERRAMIENTAS, MANO DE OBRA ESPECIALIZADA Y ACARREO DE MATERIALES AL SITIO DE SU COLOCACION.","PZA","1.0000",0,"CERO PESOS 00/100 M.N.",0,394986]
[540044,"SUMINISTRO Y COLOCACION DE CENTRO DE CARGA TRIFASICO, MARCA SQUARE- D TIPO QO320L125G, 20 POLOS, 125 A. CON ZAPATAS, INCLUYE: CONEXIONES, MATERIALES MENORES Y DE CONSUMO, PRUEBAS, FLETES, HERRAMIENTAS, IDENTIFICACION DE CIRCUITOS, LIMPIEZA YMANO DE OBRA CALIFICADA.","PZA","1.0000",0,"CERO PESOS 00/100 M.N.",0,394987]
[540071,"SUMINISTRO E INSTALACION DE TABLERO DE ALUMBRADO Y DISTRIBUCION TRIFASICO CAT. NQ-304-AB-225, 3F, 4H, MCA. SQD. CON INTERRUPTOR PRINCIPAL DE 3 X 125 A 225 AMP. (KAL-36125-225), INCLUYE: ELEMENTOS DE  FIJACION, MANO DE OBRA, MATERIALES MENORES, HERRAMIENTA, PRUEBAS, FLETES, Y ACARREO DE LOS MATERIALES AL SITIO DE SU COLOCACION.","PZA","1.0000",0,"CERO PESOS 00/100 M.N.",0,394988]
[540305,"SUMINISTRO E INSTALACION DE CENTRO DE CARGA CAT. QO-816L-100,  DE 8 POLOS  100 AMPERES, INCLUYE: MATERIALES, ZAPATAS, MANO DE OBRA, HERRAMIENTAS, ELEMENTOS DE FIJACION, PRUEBAS,  ACARREOS Y MATERIALES MENORES.","PZA","1.0000",0,"CERO PESOS 00/100 M.N.",0,394989]
[540306,"SUMINISTRO E INSTALACION DE CENTRO DE CARGA CAT. QO-612L-100,  DE 6 POLOS  100 AMPERES, INCLUYE: MATERIALES, ZAPATAS, MANO DE OBRA, HERRAMIENTAS, ELEMENTOS DE FIJACION, PRUEBAS,  ACARREOS Y MATERIALES MENORES.","PZA","1.0000",0,"CERO PESOS 00/100 M.N.",0,394990]
[540420,"SUMINISTRO Y COLOCACION DE CENTRO DE CARGAS LINEA DOMESTICA QOD-4F O S, MCA. SQUARE D, INCLUYE: ELEMENTOS DE FIJACION,  PRUEBAS, MATERIALES MENORES Y DE CONSUMO, CONEXIONES, LIMPIEZAS, HERRAMIENTAS, MANO DE OBRA ESPECIALIZADA Y ACARREO DE MATERIALES AL SITIO DE SU COLOCACION.","PZA","1.0000",0,"CERO PESOS 00/100 M.N.",0,394991]
[543012,"SUMINISTRO Y COLOCACION DE INTERRUPTOR TERMOMAGNETICO DERIVADO CON 1 POLOS, DE 15-60 AMPERES, MCA. SQUARE D, CAT. QO. INCLUYE: PRUEBAS, MATERIALES MENORES, HERRAMIENTAS, MANO DE OBRA ESPECIALIZADA  Y ACARREO DE MATERIALES AL SITIO DE SU COLOCACION.","PZA","10.0000",0,"CERO PESOS 00/100 M.N.",0,394992]
[543020,"SUMINISTRO Y COLOCACION DE INTERRUPTOR TERMOMAGNETICO CON 2 POLOS, DE 15-50 AMPERES, MCA. SQUARE D, CAT. QO. INCLUYE: PRUEBAS, FLETES, MATERIALES MENORES Y ACARREO DE MATERIALES AL SITIO DE SU COLOCACION.","PZA","12.0000",0,"CERO PESOS 00/100 M.N.",0,394993]
[543032,"SUMINISTRO Y COLOCACION DE INTERRUPTOR TERMOMAGNETICO DERIVADO CON 3 POLOS, DE 15-60 AMPERES, MCA. SQUARE D, CAT. QO. INCLUYE: PRUEBAS, MATERIALES MENORES, HERRAMIENTAS, MANO DE OBRA ESPECIALIZADA  Y ACARREO DE MATERIALES AL SITIO DE SU COLOCACION.","PZA","1.0000",0,"CERO PESOS 00/100 M.N.",0,394994]
[543042,"SUMINISTRO Y COLOCACION DE INTERRUPTOR TERMOMAGNETICO DERIVADO CON 3 POLOS, DE 70-100 AMPERES, MCA. SQUARE D, CAT. QO. INCLUYE: PRUEBAS, MATERIALES MENORES, HERRAMIENTAS, MANO DE OBRA ESPECIALIZADA  Y ACARREO DE MATERIALES AL SITIO DE SU COLOCACION.","PZA","1.0000",0,"CERO PESOS 00/100 M.N.",0,394995]
[544222,"SUMINISTRO E INSTALACION DE ARRANCADOR MANUAL MONOFASICO EN GABINETE DE USOS GENERALES NEMA 1, MCA. SQUARE D, CLASE 2510 , CAT. FG1, 1F,  INCLUYE: MATERIALES MENORES Y DE CONSUMO, HERRAMIENTAS, ELEMENTOS DE FIJACION, PRUEBAS, MONO DE OBRA ESPECIALIZADA Y ACARREO DE MATERIALES AL SITIO DE SU COLOCACION.","PZA","1.0000",0,"CERO PESOS 00/100 M.N.",0,394996]
[546792,"SUMINISTRO Y COLOCACION DE VENTILADOR DE TECHO DE 52\"; 3 ASPAS, 3 ESTRATOS, 3 VELOCIDADES ( TIPO INDUSTRIAL ) INCLUYE: MATERIALES MENORES Y DE FIJACION, HERRAMIENATAS, LIMPIEZA, PRUEBAS, MANO DE OBRA, Y ACARREO AL SITIO DE SU COLOCACION.","PZA","1.0000",0,"CERO PESOS 00/100 M.N.",0,394997]
[905315,"RECABLEADO DE SALIDA ELECTRICA PARA APAGADOR EN DUCTERIA EXISTENTE, CABLE VINANEL THW-LS 600 V. A 75° C, 90° C, MARCA CONDUCTORES MONTERREY, (VIAKON-PROTOCOLIZADO), CABLE VINANEL 21 THW-LS 600 V. A 75° C, 90° C, MARCA CONDUMEX (CONDUMEX PROTOCOLIZADO).  CALIBRE 12, INCLUYE: DESCONEXIONES, RETIRO DE ACCESORIOS Y CABLES AL 100%, MATERIALES MENORES,  HERRAMIENTA, MANO DE OBRA ESPECIALIZADA , CONEXIONES, LIMPIEZA DEL AREA DE TRABAJO, PRUEBAS, DESPERDICIOS Y ACARREO DEL MATERIAL AL SITIO DE SU COLOCACION, A CUALQUIER NIVEL. (NO INCLUYE DUCTERIA, REGISTRO Y CHALUPAS)","SAL","10.0000",0,"CERO PESOS 00/100 M.N.",0,394998]
[905321,"RECABLEADO DE SALIDA ELECTRICA PARA CONTACTO EN DUCTERIA EXISTENTE, CABLE VINANEL THW-LS 600 V. A 75° C, 90° C, MARCA CONDUCTORES MONTERREY, (VIAKON-PROTOCOLIZADO), CABLE VINANEL 21 THW-LS 600 V. A 75° C, 90° C, MARCA CONDUMEX (CONDUMEX PROTOCOLIZADO).  CALIBRE 12 EN FASES Y CABLE DE COBRE DESNUDO CAL 12 EN TIERRA FISICA, INCLUYE: DESCONEXIONES, RETIRO DE ACCESORIOS Y CABLES AL 100%,  MATERIALES MENORES,  HERRAMIENTA, MANO DE OBRA ESPECIALIZADA , CONEXIONES, LIMPIEZA DEL AREA DE TRABAJO, PRUEBAS, DESPERDICIOS Y ACARREO DEL MATERIAL AL SITIO DE SU COLOCACION, A CUALQUIER NIVEL. (NO INCLUYE DUCTERIA, REGISTRO Y CHALUPAS)","SAL","10.0000",0,"CERO PESOS 00/100 M.N.",0,394999]
[905629,"SUMINISTRO E INSTALACION DE LUMINARIO DE SOBREPONER MCA. HIGHLUMEN MOD. C-SBV20-S42TLC20-C, NOVALUX MOD. NOEII214.5LEDT8 MVSAPE, O SIMILAR, SISTEMA LED DE 30 WATTS. +- 8%, PARA OPERAR CON DOS TUBOS LED T8 (14-16 WATTS C/U), 4000°K, IRC>80, VIDA UTIL DE 40,000 HRS. 2350 LUMENES TOTALES COMO MINIMO, DRIVER INTEGRADO MULTIVOLTAJE 100-240 VOLTS , EN GABINETE METALICO FABRICADO EN LAMINA DE ACERO ROLADA EN FRIO CAL. 24 MINIMO, CON ACABADO EN POLVO POLIESTER EN APLICACION ELECTROSTÁTICA COLOR BLANCO, DIFUSOR ENVOLVENTE 100% ACRILICO, LA LUMINARIA (COMPLETA) DEBERA CUMPLIR CON LA NORMA ANCE, INCLUYE: ELEMENTOS DE FIJACION, CONEXION, MATERIALES MENORES Y DE CONSUMO, GARANTIAS, COPIA DE CERTIFICACION ANCE ANEXA EN ELTRAMITE DE LA ESTIMACION, HERRAMIENTAS, ANDAMIOS, MANO DE OBRA, PRUEBAS, LIMPIEZA Y ACARREOS.","PZA","10.0000",0,"CERO PESOS 00/100 M.N.",0,395000]
[905630,"SUMINISTRO E INSTALACION DE LUMINARIO DE SOBREPONER MCA. HIGHLUMEN MOD. C-SBV20-S43TLC20-C, NOVALUX MOD. NOEII314.5LEDT8 MVSAPE, O SIMILAR, SISTEMA LED DE 45 WATTS. +- 8%, PARA OPERAR CON TRES TUBOS LED T8 (14-16 WATTS C/U), 4000°K, IRC>80, VIDA UTIL DE 40,000 HRS. 3600 LUMENES TOTALES COMO MINIMO, DRIVER INTEGRADO MULTIVOLTAJE 100-240 VOLTS , EN GABINETE METALICO FABRICADO EN LAMINA DE ACERO ROLADA EN FRIO CAL. 24 MINIMO, CON ACABADO EN POLVO POLIESTER EN APLICACION ELECTROSTÁTICA COLOR BLANCO, DIFUSOR ENVOLVENTE 100% ACRILICO, LA LUMINARIA (COMPLETA) DEBERA CUMPLIR CON LA NORMA ANCE, INCLUYE: ELEMENTOS DE FIJACION, CONEXION, MATERIALES MENORES Y DE CONSUMO, GARANTIAS, COPIA DE CERTIFICACION ANCE ANEXA EN ELTRAMITE DE LA ESTIMACION, HERRAMIENTAS, ANDAMIOS, MANO DE OBRA, PRUEBAS, LIMPIEZA Y ACARREOS.","PZA","10.0000",0,"CERO PESOS 00/100 M.N.",0,395001]
[907390,"CONEXION DE NUEVOS ALIMENTADORES A TABLEROS EXISTENTES, INCLUYE: PRUEBAS, BALANCEO, SEPARCION Y ACOMODO DE CABLEADO, MATERIAL MENORES Y DE CONSUMO, RESANES, MANO DE OBRA, LIMPIEZA, HERRAMIENTAS Y EQUIPO.","PZA","1.0000",0,"CERO PESOS 00/100 M.N.",0,395002]
[910626,"RECABLEADO DE SALIDA ELECTRICA DE CENTRO EN DUCTERIA EXISTENTE, CABLE VINANEL THW-LS 600 V. A 75° C, 90° C, MARCA CONDUCTORES MONTERREY, (VIAKON-PROTOCOLIZADO), CABLE VINANEL 21 THW-LS 600 V. A 75° C, 90° C, MARCA CONDUMEX (CONDUMEX PROTOCOLIZADO).  CALIBRE 12, INCLUYE: DESCONEXIONES, RETIRO DE CABLES AL 100%, MATERIALES MENORES, HERRAMIENTA, MANO DE OBRA ESPECIALIZADA , CONEXIONES, LIMPIEZA DEL AREA DE TRABAJO, PRUEBAS, DESPERDICIOS Y ACARREO DEL MATERIAL AL SITIO DE SU COLOCACION, A CUALQUIER NIVEL. (NO INCLUYE DUCTERIA, REGISTRO Y CHALUPAS)","SAL","10.0000",0,"CERO PESOS 00/100 M.N.",0,395003]
[973647,"SUMINISTRO Y COLOCACION DE CURVA CONDUIT GALVANIZADA DE AJUSTE DE 64 MM. DE DIAMETRO, INCLUYE: MATERIALES MENORES,  AJUSTES, DESPERDICIOS, HERRAMIENTAS, MANO DE OBRA Y ACARREO DE LOS MATERIALES AL SITIO DE SU COLOCACION.","PZA","1.0000",0,"CERO PESOS 00/100 M.N.",0,395004]
["EDFS.12(530)","EQUIPOS E INSTALACIONES DE REDES DE VOZ Y DATOS.  ",null,null,null,null,{"$f":"TEXT(SUM(G145:G146), \"$ #,##0.00 ;\")","v":"$ 0.00 "}]
[524630,"CABLEADO DE SALIDA DE SONIDO, PARA SERVICIO A BOCINAS O BAFLES, COMPUESTA CON CABLE POLARIZADO PARA BOCINAS CAL. 12  AWG. MCA. CYSAMEX O SIMILAR, INCLUYE: CONEXIONES, ACCESORIOS, PLACA CIEGA QUINZIÑO,  MATERIALES, ELEMENTOS DE FIJACION, DESPERDICIOS, PRUEBAS, ACARREOS,  GARANTIA, LIMPIEZAS Y MANO DE OBRA ESPECIALIZADA.","SAL","8.0000",0,"CERO PESOS 00/100 M.N.",0,395005]
[524660,"SALIDA PARA EL SISTEMA DE RED DE VIDEO, SONIDO, VOZ Y/O DATOS, AEREO VISIBLE, PARA SERVICIO A EQUIPOS DE COMPUTO, FORMADA CON TUBERIA CONDUIT GALVANIZADA DE AJUSTE, ETIQUETA VERDE DE 19 Y 25 MM DE DIAM,Y CONDULET SERIE RECTANGULAR EN LA SALIDA TIPO \"FS\", CAJAS DE REGISTRO  GALVANIZADAS TIPO REFORZADO CON TAPA Y CON ALAMBRE GALVANIZADO CAL NO. 14,  (DE ACUERDO A PLANO DE INSTALACIONES PROPORCIONADO), INCLUYE: TRAZO, MATERIALES MENORES Y DE CONSUMO, CONEXIONES (MONITORES, CONTRAS, CURVAS, ETC.), SOPORTARÍA, ELEMENTOS DE FIJACION,  DESPERDICIOS, PRUEBAS, LIMPIEZAS, HERRAMIENTAS, ANDAMIOS, MANO DE OBRA Y ACARREOS. A CUALQUIER ALTURA.","SAL","18.0000",0,"CERO PESOS 00/100 M.N.",0,395006]
["EDFS.13(564)","INSTALACION HIDRAULICA, SANITARIA Y GAS EN EDIF.  ",null,null,null,null,{"$f":"TEXT(SUM(G148:G151), \"$ #,##0.00 ;\")","v":"$ 0.00 "}]
[570614,"SALIDA HIDRAULICA DE AGUA FRIA Y/O CALIENTE, PARA ALIMENTACION A MUEBLE SANITARIO, CONSISTENTE EN TUBERIA Y CONEXIONES DE CPVC DE 1/2\" A 2\" DE DIAMETRO,  INCLUYE: TRAZO, RANURAS, CAMARAS CONTRA GOLPE DE ARIETE, CONEXIONES, ( COPLES, CODOS, TAPONES, TEES, YEES, REDUCCIONES, ETC),  VALVULAS, TUERCAS UNION EN CUADROS DE VALVULAS, MATERIALES MENORES Y DE CONSUMO, PEGAMENTOS, ELEMENTOS DE FIJACION, DESPERDICIOS,  HERRAMIENTAS, LIMPIEZA, MANO DE OBRA, PRUEBAS HIDROSTATICAS, FLETES Y ACARREO DE LOS MATERIALES AL SITIO DE SU INSTALACION. (EN CUALQUIER NIVEL)","SAL","24.0000",0,"CERO PESOS 00/100 M.N.",0,395007]
[571102,"SALIDA SANITARIA A MUEBLE, CONSISTENTE EN TUBERIA Y CONEXIONES DE PVC DE 2\" Y 4\" DE DIAMETRO, INCLUYE: DESPERDICIO DE TUBERIA, LINEA DE VENTILACION (DESFOGUE),  COPLES, CODOS, TEES, YEES, REDUCCIONES, REGISTRO SANITARIO, MATERIALES MENORES, FLETES Y ACARREO DE LOS MATERIALES AL SITIO DE SU INSTALACION Y PRUEBAS.\n","SAL","22.0000",0,"CERO PESOS 00/100 M.N.",0,395008]
[592012,"SUMINISTRO Y COLOCACION DE CESPOL BOTE DE P.V.C. CON REJILLA CROMADA. INCLUYE: MATERIALES MENORES Y DE CONSUMO, HERRAMIENTAS, DESPERDICIOS, PRUEBAS, MANO DE OBRA Y ACARREO DE MATERIALES AL SITIO DE SU COLOCACION.","PZA","6.0000",0,"CERO PESOS 00/100 M.N.",0,395009]
[592110,"SUMINISTRO Y COLOCACION DE COLADERA  DE PRETIL PARA TUBO DE 4\" MARCA HELVEX MODELO 4954 INC.: MATERIALES MENORES, PRUEBAS Y ACARREOS.","PZA","10.0000",0,"CERO PESOS 00/100 M.N.",0,395010]
["EDFS.14(590)","MUEBLES DE BAÑO Y COCINA                          ",null,null,null,null,{"$f":"TEXT(SUM(G153:G163), \"$ #,##0.00 ;\")","v":"$ 0.00 "}]
[382037,"FABRICACION, SUMINISTRO E INSTALACION DE ENCIMERA O MESETA CON LAVABO INTEGRADO ELABORADO A BASE DE PLACA SOLIDA DE MINERALES Y ACRILICOS POLIMERICOS PUROS (CORIAN) DE ½\" DE ESPESOR, CON DIMENSIONES GENERALES APROXIMADAS DE 230 X 55 X 20 CM., CON CANAL DE ESCURRIMIENTOS REGISTRABLE MEDIANTE REJILLA REMOVIBLE DE ACERO INOXIDABLE., EN COLOR INDICADO POR LA SUPERVISION, AJUSTES EN OBRA, INCLUYE: TRAZO, CORTES, AJUSTES, ADHESIVO PARA UNION Y SELLADO DE JUNTAS, SOPORTERIA A BASE DE MENSULAS DE PERFILES ESTRUCTURALES (PTR), DOS CONTRA CANASTAS DE ACERO INOXIDABLE MCA. URREA FIG. 3812, DOS CESPOL DE LATON CROMADO MARCA URREA FIG. 206SC, TALADROS PARA LLAVES Y DESAGUES, EMPAQUES CHUPON DE 2\", DESPERDICIOS, NIVELACION, REMATES, ZOCLO 10 CMS, FALDON 20 CMS., HERRAMIENTAS, MANO DE OBRA, LIMPIEZA Y ACARREO DE MATERIAL AL SITIO DE SU UTILIZACION, EN CUALQUIER NIVEL.","PZA","4.0000",0,"CERO PESOS 00/100 M.N.",0,395011]
[385040,"SUMINISTRO Y COLOCACION DE DISPENSADOR DE PAPEL HIGIENICO JUMBO JR, COLOR HUMO, MARCA KIMBERLY CLARK PROFESIONAL, MODELO 94208, INCLUYE: NIVELADO, PLOMEO, MATERIALES MENORES Y DE CONSUMO, ELEMENTOS DE FIJACION, EQUIPO,  HERRAMIENTA, LIMPIEZA, MANO DE OBRA Y ACARREOS AL SITIO DE SU INSTALACION. EN CUALQUIER NIVEL.","PZA","10.0000",0,"CERO PESOS 00/100 M.N.",0,395012]
[385066,"SUMINISTRO Y COLOCACION DE DESPACHADOR DE  JABON LIQUIDO, COLOR HUMO, MARCA KIMBERLY CLARK PROFESIONAL, MODELO 94236, INCLUYE: NIVELADO, PLOMEO, MATERIALES MENORES Y DE CONSUMO, ELEMENTOS DE FIJACION, EQUIPO,  HERRAMIENTA, LIMPIEZA, MANO DE OBRA Y ACARREOS AL SITIO DE SU INSTALACION. EN CUALQUIER NIVEL.","PZA","3.0000",0,"CERO PESOS 00/100 M.N.",0,395013]
[385312,"SUMINISTRO Y COLOCACION DE BARRA DE APOYO PARA DISCAPACITADOS DE ACERO INOXIDABLE PARA W.C. MOD. 7386-0 (1045) DE SANILOCK O SIMILAR CON CHAPETON, FIJADO A MURO. INCLUYE: ACCESORIOS Y MATERIALES DE FIJACION.","PZA","3.0000",0,"CERO PESOS 00/100 M.N.",0,395014]
[590030,"SUMINISTRO E INSTALACION DE INODORO PARA FLUXOMETRO, MODELO OLIMPICO FLUX, COLOR BLANCO, MARCA AMERICAN STANDARD, INCLUYE: ASIENTO DE PLASTICO, MATERIALES MENORES Y DE CONSUMO, ELEMENTOS DE FIJACION, LIMPIEZA, CUELLO DE CERA CON GUIA, PRUEBAS, HERRAMIENTAS, MANO DE OBRA Y ACARREO DE MATERIALES AL SITIO DE SU COLOCACION.","PZA","12.0000",0,"CERO PESOS 00/100 M.N.",0,395015]
[590163,"SUMINISTRO Y COLOCACION DE MINGITORIO PARA FLUXOMETRO, COLOR BLANCO, MCA. AMERICAN STANDARD, MODELO NIAGARA, O SIMILAR CON CESPOL INTEGRAL, INCLUYE: MATERIALES MENORES, HERRAMIENTAS, ELEMENTOS DE FIJACION, NIVELACION, PRUEBAS, MANO DE OBRA Y ACARREO DE MATERIALES AL SITIO DE SU COLOCACION.","PZA","3.0000",0,"CERO PESOS 00/100 M.N.",0,395016]
[590263,"SUMINISTRO Y COLOCACION DE OVALIN DE SOBREPONER REDONDO, MCA. AMERICAN STANDAR, MOD. PIAZZA MONOMANDO O SIMILAR, INCLUYE: LLAVES ANGULARES FIG. 401, CESPOL CROMADO MCA. URREA FIG. 207, LLAVE ECONOMIZADORA DE CIERRE AUTOMATICO MARCA HELVEX FIG. TV-120, MANGUERA COFLEX, DESPERDICIOS, MATERIALES MENORES Y DE CONSUMO, ELEMENTOS DE FIJACION, MANO DE OBRA, HERRAMIENTA, LIMPIEZA, EQUIPO, PRUEBAS Y ACARREO DE MATERIALES AL SITIO DE SU COLOCACION.","PZA","6.0000",0,"CERO PESOS 00/100 M.N.",0,395017]
[590356,"SUMINISTRO Y COLOCACION DE VERTEDERO DE ACERO INOXIDABLE CAL. 18, TIPO 304 18/10, DE 40 X 40 X 26 M.,  INCLUYE: LLAVE DE CHORRO CROMADA FIG. 18-L, CHAPETON CROMADO, CONTRA CANASTA MCA. URREA FIG. 3801, MATERIALES MENORES Y DE CONSUMO, NIVELACION, SELLADO PERIMETRAL, PRUEBAS, HERRAMIENTAS, LIMPIEZA, MANO DE OBRA Y ACARREO AL SITIO DE SU COLOCACION.","PZA","2.0000",0,"CERO PESOS 00/100 M.N.",0,395018]
[591556,"SUMINISTRO Y COLOCACION DE FLUXOMETRO PARA W.C. DE PALANCA, MARCA HELVEX MODELO 110/32 O SIMILAR, INCLUYE: MATERIALES MENORES, PRUEBAS Y ACARREO DE MATERIALES AL SITIO DE SU COLOCACION, A CUALQUIER NIVEL.","PZA","12.0000",0,"CERO PESOS 00/100 M.N.",0,395019]
[591566,"SUMINISTRO Y COLOCACION DE FLUXOMETRO PARA MINGITORIO DE MANIJA MARCA HELVEX MODELO 185/19 O SIMILAR, INCLUYE: MATERIALES MENORES, PRUEBAS Y ACARREO DE MATERIALES AL SITIO DE SU COLOCACION, A CUALQUIER NIVEL.","PZA","3.0000",0,"CERO PESOS 00/100 M.N.",0,395020]
[976917,"SUMINISTRO Y COLOCACION DE LLAVE INDIVIDUAL ECONOMIZADORA DE CIERRE AUTOMATICO (TEMPORIZADORA)   CROMADA PARA LAVABO Y/U OVALIN, MCA. HELVEX, FIG. TV-122, INCLUYE: MATERIALES MENORES Y DE CONSUMO, MANGUERA FLEXIBLE COFLEX, LLAVE ANGULAR MCA. URREA FIG. 401, HERRAMIENTA, ACCESORIOS DE CONEXION, PRUEBAS, LIMPIEZA Y MANO DE OBRA.","PZA","12.0000",0,"CERO PESOS 00/100 M.N.",0,395021]
[82,"CUBIERTA PARA PATIO CIVICO",null,null,null,null,{"$f":"TEXT(SUM(G165 + G167 + G171 + G181 + G186 + G188 + G190 + G194), \"$ #,##0.00 ;\")","v":"$ 0.00 "}]
["82.01(140)","DEMOLICIONES, DESMONTAJES Y MECANICA DE SUELOS    ",null,null,null,null,{"$f":"TEXT(SUM(G166:G166), \"$ #,##0.00 ;\")","v":"$ 0.00 "}]
[140602,"DEMOLICION DE FIRME Y/O PISO DE CONCRETO DE 10 CM DE ESPESOR PROMEDIO, EN SECCIONES OBLIGADAS, INC. CORTE CON DISCO PARA DELIMITAR AREA DE DEMOLICION; MANO DE OBRA, HERRAMIENTA, EQUIPO,  CARGA Y ACARREO INTERIOR Y FUERA DE LA OBRA DEL MATERIAL PRODUCTO DE LA DEMOLICION.","M2 ","22.5000",0,"CERO PESOS 00/100 M.N.",0,395022]
["82.02(150)","TRABAJOS PRELIMINARES                             ",null,null,null,null,{"$f":"TEXT(SUM(G168:G170), \"$ #,##0.00 ;\")","v":"$ 0.00 "}]
[150120,"TRAZO Y NIVELACION DE EXTERIORES ESTABLECIENDO REFERENCIAS DEFINITIVAS, CON TRANSITO Y NIVEL (EQUIPO TOPOGRAFICO), INCLUYE: PERSONAL TECNICO CALIFICADO, ESTACAS, MOJONERAS, LOCALIZACION DE EJES Y/O ENTRE EJES, BANCOS DE NIVEL, MATERIALES PARA SEÑALAMIENTO, EQUIPO, HERRAMIENTA Y MANO DE OBRA.","M2 ","466.2000",0,"CERO PESOS 00/100 M.N.",0,395024]
[152044,"EXCAVACION EN CEPAS POR MEDIOS MANUALES EN MATERIAL TIPO \"B\", DE 0 A 2.00 M. DE PROFUNDIDAD, EN SECO, INCLUYE: AFINE DE TALUDES Y FONDO, TRASPALEOS,  MOVIMIENTOS Y ACARREOS DENTRO DE LA OBRA, HERRAMIENTAS Y MANO DE OBRA, MEDIDO EN BANCO.","M3 ","27.0000",0,"CERO PESOS 00/100 M.N.",0,395025]
[156002,"CARGA POR CUALQUIER MEDIO Y ACARREO EN CAMION DE MATERIAL DE DESPERDICIO PRODUCTO DE LAS EXCAVACIONES FUERA DE LA OBRA, A LUGAR PERMITIDO POR LAS AUTORIDADES CORRESPONDIENTES, MEDIDO EN BANCO. INCLUYE CARGA,  ACARREO Y DESCARGA A TIRO LIBRE, HERRAMIENTA, EQUIPO, MATERIALES DE CONSUMO Y MANO DE OBRA.","M3 ","27.0000",0,"CERO PESOS 00/100 M.N.",0,395026]
["82.03(160)","CIMENTACION                                       ",null,null,null,null,{"$f":"TEXT(SUM(G172:G180), \"$ #,##0.00 ;\")","v":"$ 0.00 "}]
[160092,"PLANTILLA DE RELLENO DE EMBECO NO. 636, DE 5.0 CM DE ESPESOR PROMEDIO, PARA RECIBIR PLACA BASE DE COLUMNAS DE ESTRUCTURA METALICAS, INCLUYE: PREPARACION, CIMBRA, DESCIMBRADO, MATERIALES, DESPERDICIOS, HERRAMIENTAS, LIMPIEZAS Y MANO DE OBRA.","M2 ","2.0000",0,"CERO PESOS 00/100 M.N.",0,395027]
[160222,"PLANTILLA DE CONCRETO F'C=100 KG/CM2, TMA=3/4\", DE 5.00 CM DE ESPESOR PROMEDIO. INCLUYE: MATERIALES, HERRAMIENTAS, AFINE, NIVELACION, LIMPIEZA, MANO DE OBRA Y ACARREO DE MATERIALES AL SITIO DE SU UTILIZACION.","M2 ","22.5000",0,"CERO PESOS 00/100 M.N.",0,395028]
[170012,"CIMBRA  ACABADO COMUN, EN CIMENTACION, INCLUYE: DESPERDICIO, HABILITADO, CIMBRADO Y DESCIMBRA, NIVELACION, PLOMEO MATERIAL, MANO DE OBRA , LIMPIEZA, HERRAMIENTA, ACARREO DEL MATRIAL DENTRO Y FUERA DE LA OBRA.","M2 ","29.0000",0,"CERO PESOS 00/100 M.N.",0,395029]
[173003,"SUMINISTRO, HABILITADO, ARMADO Y COLOCACION DE ACERO DE REFUERZO FY=4,200 KG/CM2 (G.E.), DE 3/8\" ( #3 ), EN CIMENTACION, INCLUYE: MATERIALES, HABILITADO,  DOBLECES,  SILLETAS, ALAMBRE, GANCHOS, ESCUADRAS, TRASLAPES, DESPERDICIOS HERRAMIENTAS, MANO DE OBRA Y ACARREO DE MATERIALES AL SITIO DE SU COLOCACION.","KG ","245.0000",0,"CERO PESOS 00/100 M.N.",0,395030]
[173004,"SUMINISTRO, HABILITADO, ARMADO Y COLOCACION DE ACERO DE REFUERZO FY=4,200 KG/CM2 (G.E.), DE 1/2\" ( #4 ), EN CIMENTACION, INCLUYE: MATERIALES, HABILITADO,  DOBLECES,  SILLETAS, ALAMBRE, GANCHOS, ESCUADRAS, TRASLAPES, DESPERDICIOS HERRAMIENTAS, MANO DE OBRA Y ACARREO DE MATERIALES AL SITIO DE SU COLOCACION.","KG ","115.0000",0,"CERO PESOS 00/100 M.N.",0,395031]
[173008,"SUMINISTRO, HABILITADO, ARMADO Y COLOCACION DE ACERO DE REFUERZO FY=4,200 KG/CM2 (G.E.), DE 1\" (#8 ), EN CIMENTACION, INCLUYE: MATERIALES, HABILITADO,  DOBLECES,  SILLETAS, ALAMBRE, GANCHOS, ESCUADERAS, TRASLAPES, DESPERDICIOS HERRAMIENTAS, MANO DE OBRA Y ACARREO DE MATERIALES AL SITIO DE SU COLOCACION.","KG ","515.0000",0,"CERO PESOS 00/100 M.N.",0,395032]
[176008,"SUMINISTRO Y COLOCACION DE CONCRETO HECHO EN OBRA F'C=250 KG/CM2, TMA= 3/4\", R.N. EN CIMENTACION. INCLUYE: TENDIDO, RASTREADO, VIBRADO, NIVELACION, HERRAMIENTAS, LIMPIEZA, PRUEBAS,  CURADO CON CURACRETO ROJO,  DESPERDICIO Y MANO DE OBRA.","M3 ","6.0000",0,"CERO PESOS 00/100 M.N.",0,395033]
[180102,"RELLENO COMPACTADO AL 90 % PROCTOR, CON MATERIAL DE BANCO, EN CAPAS DE 20 CM DE ESPESOR, AGREGANDO AGUA PARA LOGRAR SU HUMEDAD OPTIMA, AL 90%. POR CUALQUIER MEDIO, INCLUYE: SUMINISTRO DE AGUA PARA LOGRAR HUMEDAD OPTIMA, TENDIDO, TRASPALEOS,  DESPERDICIOS, EQUIPO, PRUEBAS DE COMPACTACION, AFINE, NIVELACION, HERRAMIENTAS, MANO DE OBRA Y  ACARREO HASTA EL SITIO DE SU COLOCACION.  (VOLUMEN MEDIDO COMPACTADO).","M3 ","21.0000",0,"CERO PESOS 00/100 M.N.",0,395034]
[192324,"FABRICACION, SUMINISTRO Y COLOCACION DE JUEGO DE ANCLAS EN \"L\" DE REDONDO LISO (COLD ROLLED) CON 4 VARILLAS DE 1\" (#8), DE 70 CM DE DESARROLLO TOTAL (CADA ANCLA), CON 10 CM. DE ROSCA EN EXTREMO SUPERIOR, UNIDAS CON 2 ANILLETAS DE DE VARILLA CORRUGADA DE 3/8\" Y ALINEADAS A LA PLACA EN LA BASE DE COLUMNA. INCLUYE: CORTES, ROSCADO, DESPERDICIOS, ALINEACION, NIVELACION, PLOMEO, SOLDADURA, DOBLECES, TUERCAS, RONDANAS,  MANO DE OBRA, EQUIPO, HERRAMIENTA Y ACARREOS.","JGO","10.0000",0,"CERO PESOS 00/100 M.N.",0,395035]
["82.04(200)","ESTRUCTURA                                        ",null,null,null,null,{"$f":"TEXT(SUM(G182:G185), \"$ #,##0.00 ;\")","v":"$ 0.00 "}]
[280090,"SUMINISTRO, HABILITADO Y MONTAJE DE ESTRUCTURA METALICA DE ACERO ASTMA-36 F'Y=2530 KG/CM2, SOLDADOS Y/O ATORNILLADOS, (PERFILES IPR. IPS, CPS, REDONDOS SOLIDO, SOLERAS Y PLACAS, ETC, DIFERENTES DIMENSIONES Y CALIBRES,) PARA COLUMNAS, ARMADURAS, TRABES Y VIGAS, INCLUYE: MATERIALES MENORES Y DE CONSUMO, TRAZO, CORTES, AJUSTES, DESPERDICIOS, ENDEREZADO, BISELADO, DESCALIBRES, BARRENOS, TORQUES, SOLDADURA, UNA PRUEBA RADIOGRAFICA Y/O LIQUIDOS PENETRANTES POR CADA 500 KG. DE ACERO, FLETES, PINTURA ANTICORROSIVA, MANO DE OBRA CALIFICADA, HERRAMIENTA, EQUIPO, FLETES, ELEVACIONES, ACARREOS DE MATERIALES AL SITIO DE SU COLOCACION, ACUALQUIER ALTURA.","KG ","538.0000",0,"CERO PESOS 00/100 M.N.",0,395036]
[280095,"SUMINISTRO, HABILITADO Y MONTAJE DE ESTRUCTURA METALICA DE ACERO, ASTM A-500 GR-B, F'Y=3200 KG/CM2, SOLDADOS Y/O ATORNILLADOS, (OR, OC, TUBOS REDONDOS, PTR, ETC, DIFERENTES DIMENSIONES Y CALIBRES,) PARA COLUMNAS, ARMADURAS, TRABES Y VIGAS, INCLUYE: MATERIALES MENORES Y DE CONSUMO, TRAZO, CORTES, AJUSTES, DESPERDICIOS, ENDEREZADO, BISELADO, DESCALIBRES, BARRENOS, TORQUES, SOLDADURA, UNA PRUEBA RADIOGRAFICA Y/O LIQUIDOS PENETRANTES POR CADA 500 KG. DE ACERO, FLETES, PINTURA ANTICORROSIVA, MANO DE OBRA CALIFICADA, HERRAMIENTA, ANDAMIOS, EQUIPO, FLETES, ELEVACIONES, ACARREOS DE MATERIALES AL SITIO DE SU COLOCACION, A CUALQUIER ALTURA.","KG ","3,340.0000",0,"CERO PESOS 00/100 M.N.",0,395037]
[280096,"SUMINISTRO, HABILITADO, ROLADO Y MONTAJE DE ESTRUCTURA METALICA DE ACERO, ASTM A-500 GR-B, F'Y=3200 KG/CM2, SOLDADOS Y/O ATORNILLADOS, (OR, OC, TUBOS REDONDOS, PTR, ETC, DIFERENTES DIMENSIONES Y CALIBRES,) PARA COLUMNAS, ARMADURAS, TRABES Y VIGAS, INCLUYE: MATERIALES MENORES Y DE CONSUMO, TRAZO, CORTES, AJUSTES, DESPERDICIOS, ENDEREZADO, ROLADO, BISELADO, DESCALIBRES, BARRENOS, TORQUES, SOLDADURA, UNA PRUEBA RADIOGRAFICA Y/O LIQUIDOS PENETRANTES POR CADA 500 KG. DE ACERO, FLETES, PINTURA ANTICORROSIVA, MANO DE OBRA CALIFICADA, HERRAMIENTA, ANDAMIOS, EQUIPO, FLETES, ELEVACIONES, ACARREOS DE MATERIALES AL SITIO DE SU COLOCACION, A CUALQUIER ALTURA.","KG ","3,070.0000",0,"CERO PESOS 00/100 M.N.",0,395038]
[280202,"SUMINISTRO, HABILITADO  Y COLOCACION TENSORES, CRUCETAS Y/O TIRANTES DE REDONDO LISO (COLD ROLLED) DE ACERO DE BAJO CARBÓN ASTM A-108 DE ½\" A 1\" DE DIAMETRO, INCLUYE: TRAZO, CORTES, AJUSTES, BARRENOS, DESPERDICOS, DESCALIBRES, SOLDADURA DE PENETRACION, PRUEBAS RADIOGRAFICAS Y/O LIQUIDOS PENETRANTES, ROSCADO, TUERCAS, RONDANAS, TENSADO, TORQUES, FLETES, HERRAMIENTAS, ANDAMIOS, EQUIPO, PINTURA ANTICORROSIVA, MANO DE OBRA Y ACARREOS AL SITIO DE SU COLOCACION. A CUALQUIER ALTURA.","KG ","330.0000",0,"CERO PESOS 00/100 M.N.",0,395039]
["82.05(319)","ENTREPISOS, CUBIERTA Y ACABADOS DE AZOTEA         ",null,null,null,null,{"$f":"TEXT(SUM(G187:G187), \"$ #,##0.00 ;\")","v":"$ 0.00 "}]
[418240,"SUMINISTRO E INSTALACION DE MEMBRANA ARQUITECTONICA TRASLUCIDA O BLACK OUT ELABORADA CON HILO POLIESTER DE ALTA TENACIDAD (HT) 1100 DTEX TEJIDO TIPO L CON TRATAMIENTO DE FLUORPOLIMERO PVDF, PESO 850G/M2 CON RESISTENCIA A LA TENSION DE 2800 A 3000 N/5CM, RESISTENCIA AL DESGARRO O RASGADO DE 300 N EN URDIMBRE Y TRAMA, ADHESIÓN DE 100 A 120 N/5CM, AUTO-EXTINGUIBLE O TRATAMIENTO AL FUEGO, TRANSMITANCIA UV < 0.1%, TRATAMIENTO ANTI-HONGOS Y GARANTIA DE 10 AÑOS COMO MINIMO, UNIDAD CON TERMO SELLADO O SOLDADURA DE RADIO FRECUENCIA, INCLUYE: TRAZO, CORTES, CONFECCION, HERRAJES, TENSORES, MATERIALES MENORES Y DE CONSUMO, DESPERDICIOS, ELEVACION, HERRAMIENTAS, EQUIPO, GARANTIA POR ESCRITO DE 10 AÑOS, ELEMENTOS DE FIJACION, SELLADO, LIMPIEZA, MANO DE OBRA ESPECIALIZADA, FLETES Y ACARREOS.","M2 ","456.4000",0,"CERO PESOS 00/100 M.N.",0,395040]
["82.06(372)","PISOS                                             ",null,null,null,null,{"$f":"TEXT(SUM(G189:G189), \"$ #,##0.00 ;\")","v":"$ 0.00 "}]
[373022,"PISO DE CONCRETO F'C=150 KG/CM², T.M.A. 3/4\", DE 0.10 M. DE ESPESOR, COLADO EN CUADROS NO MAYORES DE 3.00 ML POR LADO, INCLUYE: TRAZO, NIVELACION, AFINE Y COMPACTACION DEL TERRENO, AGUA, DESPERDICIOS, ACARREOS, REGLEADO, ACABADO INTEGRAL RAYADO CON BROCHA DE PELO (SIN UTILIZACION DE PASTA), CIMBRA EN FRONTERAS, DESCIMBRA, COLADO, CURADO, REMATES, ESCALONADO, MUESTREADO, JUNTAS FRIAS CON VOLTEADOR, HERRAMIENTAS Y MANO DE OBRA.","M2 ","22.5000",0,"CERO PESOS 00/100 M.N.",0,395041]
["82.07(393)","PINTURA                                           ",null,null,null,null,{"$f":"TEXT(SUM(G191:G193), \"$ #,##0.00 ;\")","v":"$ 0.00 "}]
[393318,"PINTURA DE ESMALTE ALQUIDALICO ANTICORROSIVO, ACABADO BRILLANTE, PARA INTERIORES Y EXTERIORES QUE NO DESPRENDA VAPORES TÓXICOS NI OLORES DESAGRADABLES, CON LAS SIGUIENTES CARACTERÍSTICAS ( SÓLIDOS POR PESO 49-60%, SÓLIDOS POR VOLUMEN 40-46%, VISCOSIDAD DE 110-160 UK A 25°C, DENSIDAD 0.9-1.2 TON/M3., BRILLO A 60°C, 90%, TIEMPO DE SECADO AL TACTO, < O = 6 HRS., TIEMPO DE SECADO DURO < O = 24 HRS., ADHERENCIA 100%, RENDIMIENTO EN SUP. LISA 8-10 M2/LT., DILUCIÓN MÁXIMA (AGUARRÁS, THINER), 15 %,  DE TUBO DE FIERRO NEGRO DE 4\" A 6\" DE DIÁMETRO, (POSTES, PASAMANOS, BARANDALES, ESTRUCTURAS, REDES, ETC.), TRABAJO TERMINADO, A DOS MANOS, INCLUYE: MATERIALES MENORES Y DE CONSUMO, PREPARACION DE LA SUPERFICIE, ANDAMIOS, HERRAMIENTAS, LIMPIEZA, MANO DE OBRA Y  EQUIPO DE SEGURIDAD. CUALQUIER ALTURA.","ML ","303.0000",0,"CERO PESOS 00/100 M.N.",0,395042]
[393319,"PINTURA DE ESMALTE ALQUIDALICO ANTICORROSIVO, ACABADO BRILLANTE, PARA INTERIORES Y EXTERIORES QUE NO DESPRENDA VAPORES TÓXICOS NI OLORES DESAGRADABLES, CON LAS SIGUIENTES CARACTERÍSTICAS ( SÓLIDOS POR PESO 49-60%, SÓLIDOS POR VOLUMEN 40-46%, VISCOSIDAD DE 110-160 UK A 25°C, DENSIDAD 0.9-1.2 TON/M3., BRILLO A 60°C, 90%, TIEMPO DE SECADO AL TACTO, < O = 6 HRS., TIEMPO DE SECADO DURO < O = 24 HRS., ADHERENCIA 100%, RENDIMIENTO EN SUP. LISA 8-10 M2/LT., DILUCIÓN MÁXIMA (AGUARRÁS, THINER), 15 %,   EN TUBO DE FIERRO NEGRO DE 3/4\" A 1 1/2\" DE DIÁMETRO, (POSTES, PASAMANOS, BARANDALES, REDES, ETC.),  TRABAJO TERMINADO, A DOS MANOS, INCLUYE: MATERIALES MENORES Y DE CONSUMO, PREPARACION DE LA SUPERFICIE, ANDAMIOS, HERRAMIENTAS, LIMPIEZA, MANO DE OBRA Y  EQUIPO DE SEGURIDAD. CUALQUIER ALTURA.","ML ","82.0000",0,"CERO PESOS 00/100 M.N.",0,395043]
[917337,"PINTURA DE ESMALTE ALQUIDALICO ANTICORROSIVO, ACABADO BRILLANTE, PARA INTERIORES Y EXTERIORES QUE NO DESPRENDA VAPORES TÓXICOS NI OLORES DESAGRADABLES, CON LAS SIGUIENTES CARACTERÍSTICAS ( SÓLIDOS POR PESO 49-60%, SÓLIDOS POR VOLUMEN 40-46%, VISCOSIDAD DE 110-160 UK A 25°C, DENSIDAD 0.9-1.2 TON/M3., BRILLO A 60°C, 90%, TIEMPO DE SECADO AL TACTO, < O = 6 HRS., TIEMPO DE SECADO DURO < O = 24 HRS., ADHERENCIA 100%, RENDIMIENTO EN SUP. LISA 8-10 M2/LT., DILUCIÓN MÁXIMA (AGUARRÁS, THINER), 15 %,  DE TUBO DE FIERRO NEGRO DE 8\" A 10\" DE DIÁMETRO, (POSTES, PASAMANOS, BARANDALES, ESTRUCTURAS, REDES, ETC.), TRABAJO TERMINADO, A DOS MANOS, INCLUYE: MATERIALES MENORES Y DE CONSUMO, PREPARACION DE LA SUPERFICIE, ANDAMIOS, HERRAMIENTAS, LIMPIEZA, MANO DE OBRA Y  EQUIPO DE SEGURIDAD. CUALQUIER ALTURA.","ML ","51.0000",0,"CERO PESOS 00/100 M.N.",0,395044]
["82.08(396)","LIMPIEZA                                          ",null,null,null,null,{"$f":"TEXT(SUM(G195:G195), \"$ #,##0.00 ;\")","v":"$ 0.00 "}]
[396428,"LIMPIEZA GENERAL DE LA OBRA, INCLUYE: ACARREO DEL MATERIAL PRODUCTO DE LA LIMPIEZA , FUERA DE LA OBRA.","M2 ","466.2000",0,"CERO PESOS 00/100 M.N.",0,395045]
["02","RED ELECTRICA",null,null,null,null,{"$f":"TEXT(SUM(G197 + G199), \"$ #,##0.00 ;\")","v":"$ 0.00 "}]
["02.01(140)","DEMOLICIONES, DESMONTAJES Y MECANICA DE SUELOS    ",null,null,null,null,{"$f":"TEXT(SUM(G198:G198), \"$ #,##0.00 ;\")","v":"$ 0.00 "}]
[907176,"DEMOLICION DE PISO DE CONCRETO DE 0.08 A 0.10 CM DE ESPESOR, Y  5 A 15 CMS. DE ANCHO, INCLUYE: CORTE CON DISCO PARA DELIMITAR AREA DE DEMOLICION, EXCAVACION, RELLENO, COMPACTACION, REPOSICION DEL PISO DE CONCRETO, MANO DE OBRA, HERRAMIENTA, EQUIPO,  CARGA Y ACARREO INTERIOR Y FUERA DE LA OBRA DEL MATERIAL PRODUCTO DE LA DEMOLICION.","ML ","5.0000",0,"CERO PESOS 00/100 M.N.",0,395023]
["02.02(511)","INSTALACION ELECTRICA EN OBRA EXTERIOR            ",null,null,null,null,{"$f":"TEXT(SUM(G200:G220), \"$ #,##0.00 ;\")","v":"$ 0.00 "}]
[534004,"SUMINISTRO Y TENDIDO DE TUBO CONDUIT DE P.V.C. PESADO, DE 19 MM DIAM. INCLUYE: CONEXIONES, TRAZO, EXCAVACION, RELLENO, DESPERDICIOS, MATERIALES MENORES, PRUEBAS Y ACARREO AL SITIO DE SU COLOCACION.","ML ","10.0000",0,"CERO PESOS 00/100 M.N.",0,395046]
[534006,"SUMINISTRO Y TENDIDO DE TUBO CONDUIT DE P.V.C. PESADO, DE 25 MM DIAM. INC.: CONEXIONES, TRAZO, EXCAVACION, RELLENO, DESPERDICIOS, MATERIALES MENORES, PRUEBAS Y ACARREO AL SITIO DE SU COLOCACION.","ML ","10.0000",0,"CERO PESOS 00/100 M.N.",0,395047]
[534008,"SUMINISTRO Y TENDIDO DE TUBO CONDUIT DE P.V.C. PESADO, DE 32 MM DIAM. INC.: CONEXIONES, TRAZO, EXCAVACION, RELLENO, DESPERDICIOS, MATERIALES MENORES, PRUEBAS Y ACARREO AL SITIO DE SU COLOCACION.","ML ","10.0000",0,"CERO PESOS 00/100 M.N.",0,395048]
[534010,"SUMINISTRO Y TENDIDO DE TUBO CONDUIT DE P.V.C. PESADO, DE 38 MM DIAM. INC.: CONEXIONES, TRAZO, EXCAVACION, RELLENO, DESPERDICIOS, MATERIALES MENORES, PRUEBAS Y ACARREO AL SITIO DE SU COLOCACION.","ML ","10.0000",0,"CERO PESOS 00/100 M.N.",0,395049]
[534012,"SUMINISTRO Y TENDIDO DE TUBO CONDUIT DE P.V.C. PESADO, DE 50 MM DIAM. INC.: CONEXIONES, TRAZO, EXCAVACION, RELLENO, DESPERDICIOS, MATERIALES MENORES, PRUEBAS Y ACARREO AL SITIO DE SU COLOCACION.","ML ","10.0000",0,"CERO PESOS 00/100 M.N.",0,395050]
[534014,"SUMINISTRO Y TENDIDO DE TUBO CONDUIT DE P.V.C. PESADO, DE 64 MM DIAM. INC.: CONEXIONES, TRAZO, EXCAVACION, RELLENO, DESPERDICIOS, MATERIALES MENORES, PRUEBAS Y ACARREO AL SITIO DE SU COLOCACION.","ML ","30.0000",0,"CERO PESOS 00/100 M.N.",0,395051]
[534059,"SUMINISTRO Y COLOCACION DE CURVA CONDUIT DE PVC PESADO  DE 19 MM.  DE DIAM.  INCLUYE: MATERIALES MENORES Y DE CONSUMO, HERRAMIENTAS, PRUEBAS,  DESPERDICIOS, MANO DE OBRA Y ACARREOS AL SITIO DE SU COLOCACION.","PZA","3.0000",0,"CERO PESOS 00/100 M.N.",0,395052]
[536006,"SUMINISTRO Y COLOCACION DE CABLE VINANEL THW-LS 600 V. A 75° C, 90° C, MARCA CONDUCTORES MONTERREY, (VIAKON-PROTOCOLIZADO), CABLE VINANEL 21 THW-LS 600 V. A 75° C, 90° C, MARCA CONDUMEX (CONDUMEX PROTOCOLIZADO). CAL. 12,  INCLUYE: DESPERDICIOS, MATERIALES MENORES, HERRAMIENTA, CONEXIONES, MANO DE OBRA ESPECIALIZADA, LIMPIEZA DEL AREA DE TRABAJO, PRUEBAS Y ACARREO AL SITIO DE SU COLOCACION.","ML ","50.0000",0,"CERO PESOS 00/100 M.N.",0,395053]
[536008,"SUMINISTRO Y COLOCACION DE CABLE VINANEL THW-LS 600 V. A 75° C, 90° C, MARCA CONDUCTORES MONTERREY, (VIAKON-PROTOCOLIZADO), CABLE VINANEL 21 THW-LS 600 V. A 75° C, 90° C, MARCA CONDUMEX (CONDUMEX PROTOCOLIZADO). CAL. 10,  INCLUYE: DESPERDICIOS, MATERIALES MENORES, HERRAMIENTA, CONEXIONES, MANO DE OBRA ESPECIALIZADA, LIMPIEZA DEL AREA DE TRABAJO, PRUEBAS Y ACARREO AL SITIO DE SU COLOCACION.","ML ","25.0000",0,"CERO PESOS 00/100 M.N.",0,395054]
[536010,"SUMINISTRO Y COLOCACION DE CABLE VINANEL THW-LS 600 V. A 75° C, 90° C, MARCA CONDUCTORES MONTERREY, (VIAKON-PROTOCOLIZADO), CABLE VINANEL 21 THW-LS 600 V. A 75° C, 90° C, MARCA CONDUMEX (CONDUMEX PROTOCOLIZADO). CAL. 8,  INCLUYE: DESPERDICIOS, MATERIALES MENORES, HERRAMIENTA, CONEXIONES, MANO DE OBRA ESPECIALIZADA, LIMPIEZA DEL AREA DE TRABAJO, PRUEBAS Y ACARREO AL SITIO DE SU COLOCACION.","ML ","50.0000",0,"CERO PESOS 00/100 M.N.",0,395055]
[536012,"SUMINISTRO Y COLOCACION DE CABLE VINANEL THW-LS 600 V. A 75° C, 90° C, MARCA CONDUCTORES MONTERREY, (VIAKON-PROTOCOLIZADO), CABLE VINANEL 21 THW-LS 600 V. A 75° C, 90° C, MARCA CONDUMEX (CONDUMEX PROTOCOLIZADO). CAL. 6,  INCLUYE: DESPERDICIOS, MATERIALES MENORES, HERRAMIENTA, CONEXIONES, MANO DE OBRA ESPECIALIZADA, LIMPIEZA DEL AREA DE TRABAJO, PRUEBAS Y ACARREO AL SITIO DE SU COLOCACION.","ML ","25.0000",0,"CERO PESOS 00/100 M.N.",0,395056]
[536014,"SUMINISTRO Y COLOCACION DE CABLE VINANEL THW-LS 600 V. A 75° C, 90° C, MARCA CONDUCTORES MONTERREY, (VIAKON-PROTOCOLIZADO), CABLE VINANEL 21 THW-LS 600 V. A 75° C, 90° C, MARCA CONDUMEX (CONDUMEX PROTOCOLIZADO). CAL. 4,  INCLUYE: DESPERDICIOS, MATERIALES MENORES, HERRAMIENTA, CONEXIONES, MANO DE OBRA ESPECIALIZADA, LIMPIEZA DEL AREA DE TRABAJO, PRUEBAS Y ACARREO AL SITIO DE SU COLOCACION.","ML ","33.0000",0,"CERO PESOS 00/100 M.N.",0,395057]
[536016,"SUMINISTRO Y COLOCACION DE CABLE VINANEL THW-LS 600 V. A 75° C, 90° C, MARCA CONDUCTORES MONTERREY, (VIAKON-PROTOCOLIZADO), CABLE VINANEL 21 THW-LS 600 V. A 75° C, 90° C, MARCA CONDUMEX (CONDUMEX PROTOCOLIZADO). CAL. 2,  INCLUYE: DESPERDICIOS, MATERIALES MENORES, HERRAMIENTA, CONEXIONES, MANO DE OBRA ESPECIALIZADA, LIMPIEZA DEL AREA DE TRABAJO, PRUEBAS Y ACARREO AL SITIO DE SU COLOCACION.","ML ","10.0000",0,"CERO PESOS 00/100 M.N.",0,395058]
[536018,"SUMINISTRO Y COLOCACION DE CABLE VINANEL THW-LS 600 V. A 75° C, 90° C, MARCA CONDUCTORES MONTERREY, (VIAKON-PROTOCOLIZADO), CABLE VINANEL 21 THW-LS 600 V. A 75° C, 90° C, MARCA CONDUMEX (CONDUMEX PROTOCOLIZADO). CAL. 1/0,  INCLUYE: DESPERDICIOS, MATERIALES MENORES, HERRAMIENTA, CONEXIONES, MANO DE OBRA ESPECIALIZADA, LIMPIEZA DEL AREA DE TRABAJO, PRUEBAS Y ACARREO AL SITIO DE SU COLOCACION.","ML ","10.0000",0,"CERO PESOS 00/100 M.N.",0,395059]
[536129,"SUMINISTRO Y COLOCACION DE CURVA CONDUIT DE PVC PESADO  DE 64 MM.  DE DIAM.  INCLUYE: MATERIALES MENORES Y DE CONSUMO, HERRAMIENTAS, PRUEBAS,  DESPERDICIOS, MANO DE OBRA Y ACARREOS AL SITIO DE SU COLOCACION.","PZA","1.0000",0,"CERO PESOS 00/100 M.N.",0,395060]
[536130,"SUMINISTRO Y COLOCACION DE CURVA CONDUIT DE PVC PESADO  DE 51 MM.  DE DIAM.  INCLUYE: MATERIALES MENORES Y DE CONSUMO, HERRAMIENTAS, PRUEBAS,  DESPERDICIOS, MANO DE OBRA Y ACARREOS AL SITIO DE SU COLOCACION.","PZA","3.0000",0,"CERO PESOS 00/100 M.N.",0,395061]
[536131,"SUMINISTRO Y COLOCACION DE CURVA CONDUIT DE PVC PESADO  DE 32 MM.  DE DIAM.  INCLUYE: MATERIALES MENORES Y DE CONSUMO, HERRAMIENTAS, PRUEBAS,  DESPERDICIOS, MANO DE OBRA Y ACARREOS AL SITIO DE SU COLOCACION.","PZA","3.0000",0,"CERO PESOS 00/100 M.N.",0,395062]
[536141,"SUMINISTRO Y COLOCACION DE CURVA CONDUIT DE PVC PESADO  DE 25 MM.  DE DIAM.  INCLUYE: MATERIALES MENORES Y DE CONSUMO, HERRAMIENTAS, PRUEBAS,  DESPERDICIOS, MANO DE OBRA Y ACARREOS AL SITIO DE SU COLOCACION.","PZA","2.0000",0,"CERO PESOS 00/100 M.N.",0,395063]
[536143,"SUMINISTRO Y COLOCACION DE CURVA CONDUIT DE PVC PESADO  DE 38 MM.  DE DIAM.  INCLUYE: MATERIALES MENORES Y DE CONSUMO, HERRAMIENTAS, PRUEBAS,  DESPERDICIOS, MANO DE OBRA Y ACARREOS AL SITIO DE SU COLOCACION.","PZA","1.0000",0,"CERO PESOS 00/100 M.N.",0,395064]
[880612,"SUMINISTRO Y COLOCACION DE REGISTRO ELECTRICO DE CONCRETO, PREFABRICADO, PARA BAJA TENSION TIPO 2 NORMA C.F.E.- RBTB-2 DE 66 X 100 X 65 CM., CON TAPA DE CONCRETO,  MARCO Y CONTRAMARCO  DE ACERO GALVANIZADO, INCLUYE: TRAZO, EXCAVACION, RELLENOS COMPACTADOS, FILTRO DE GRAVA, RESANADO FINO DE TUBERIAS EN SU INTERIOR, HERRAMIENTAS, MANO DE OBRA, FLETES, ACARREO AL SITIO DE SU COLOCACION Y LIMPIEZA DEL AREA DE TRABAJO.","PZA","1.0000",0,"CERO PESOS 00/100 M.N.",0,395065]
[880618,"SUMINISTRO Y COLOCACION DE REGISTRO ELECTRICO PARA ALUMBRADO, PREFABRICADO  DE 0.40 X 0.40 X 0.60 MTS. CON TAPA DE CONCRETO,  MARCO Y CONTRAMARCO DE FIERRO GALVANIZADO, INCLUYE: TRAZO, EXCAVACION, TAPA DE CONCRETO CON MARCO Y CONTRAMARCO DE ANGULO, RELLENO, FILTRO DE GRAVA, HERRAMIENTAS, MANO DE OBRA, FLETES, ACARREO AL SITIO DE SU COLOCACION Y LIMPIEZA DEL AREA DE TRABAJO.","PZA","1.0000",0,"CERO PESOS 00/100 M.N.",0,395066]
[null,"RESUMEN DE PARTIDAS"]
["BAS-REH-06064","CONSTRUCCIÓN DE ESTRUCTURA CON LONARIA, REFORZAMIENTO Y REHABILITACIÓN GENERAL DE EDIFICIOS EN LA ESCUELA PRIMARIA PRACTICA ANEXA A LA NORMAL CCT 14EPR0001Y, UBICADA EN LA CABECERA MUNICIPAL DE GUADALAJARA, JALISCO. ",null,null,null,null,{"$f":"G17","v":"$ 0.00 "}]
["EDFS","EDIFICIOS",null,null,null,null,{"$f":"G18","v":"$ 0.00 "}]
["EDFS.01(140)","DEMOLICIONES, DESMONTAJES Y MECANICA DE SUELOS    ",null,null,null,null,{"$f":"G19","v":"$ 0.00 "}]
["EDFS.02(200)","ESTRUCTURA                                        ",null,null,null,null,{"$f":"G46","v":"$ 0.00 "}]
["EDFS.03(310)","MUROS, CADENAS, CASTILLOS Y REPIZONES.            ",null,null,null,null,{"$f":"G53","v":"$ 0.00 "}]
["EDFS.04(319)","ENTREPISOS, CUBIERTA Y ACABADOS DE AZOTEA         ",null,null,null,null,{"$f":"G55","v":"$ 0.00 "}]
["EDFS.05(355)","RECUBRIMIENTOS Y ACABADOS                         ",null,null,null,null,{"$f":"G58","v":"$ 0.00 "}]
["EDFS.06(372)","PISOS                                             ",null,null,null,null,{"$f":"G67","v":"$ 0.00 "}]
["EDFS.07(382)","ELEMENTOS COMPLEMENTARIOS DE ALBAÑILERIA          ",null,null,null,null,{"$f":"G73","v":"$ 0.00 "}]
["EDFS.08(393)","PINTURA                                           ",null,null,null,null,{"$f":"G76","v":"$ 0.00 "}]
["EDFS.09(396)","LIMPIEZA                                          ",null,null,null,null,{"$f":"G83","v":"$ 0.00 "}]
["EDFS.10(410)","CANCELERIA, HERRERIA, ALUMINIO, VIDRIOS Y CHAPAS  ",null,null,null,null,{"$f":"G89","v":"$ 0.00 "}]
["EDFS.11(510)","INSTALACION ELECTRICA EN EDIFICIO                 ",null,null,null,null,{"$f":"G100","v":"$ 0.00 "}]
["EDFS.12(530)","EQUIPOS E INSTALACIONES DE REDES DE VOZ Y DATOS.  ",null,null,null,null,{"$f":"G144","v":"$ 0.00 "}]
["EDFS.13(564)","INSTALACION HIDRAULICA, SANITARIA Y GAS EN EDIF.  ",null,null,null,null,{"$f":"G147","v":"$ 0.00 "}]
["EDFS.14(590)","MUEBLES DE BAÑO Y COCINA                          ",null,null,null,null,{"$f":"G152","v":"$ 0.00 "}]
[82,"CUBIERTA PARA PATIO CIVICO",null,null,null,null,{"$f":"G164","v":"$ 0.00 "}]
["82.01(140)","DEMOLICIONES, DESMONTAJES Y MECANICA DE SUELOS    ",null,null,null,null,{"$f":"G165","v":"$ 0.00 "}]
["82.02(150)","TRABAJOS PRELIMINARES                             ",null,null,null,null,{"$f":"G167","v":"$ 0.00 "}]
["82.03(160)","CIMENTACION                                       ",null,null,null,null,{"$f":"G171","v":"$ 0.00 "}]
["82.04(200)","ESTRUCTURA                                        ",null,null,null,null,{"$f":"G181","v":"$ 0.00 "}]
["82.05(319)","ENTREPISOS, CUBIERTA Y ACABADOS DE AZOTEA         ",null,null,null,null,{"$f":"G186","v":"$ 0.00 "}]
["82.06(372)","PISOS                                             ",null,null,null,null,{"$f":"G188","v":"$ 0.00 "}]
["82.07(393)","PINTURA                                           ",null,null,null,null,{"$f":"G190","v":"$ 0.00 "}]
["82.08(396)","LIMPIEZA                                          ",null,null,null,null,{"$f":"G194","v":"$ 0.00 "}]
["02","RED ELECTRICA",null,null,null,null,{"$f":"G196","v":"$ 0.00 "}]
["02.01(140)","DEMOLICIONES, DESMONTAJES Y MECANICA DE SUELOS    ",null,null,null,null,{"$f":"G197","v":"$ 0.00 "}]
["02.02(511)","INSTALACION ELECTRICA EN OBRA EXTERIOR            ",null,null,null,null,{"$f":"G199","v":"$ 0.00 "}]
[]
["IMPORTE CON LETRA (IVA INCLUIDO)",null,null,null,null,"SUBTOTAL M.N.",{"$f":"TEXT(G17,  \"$ #,##0.00 ;\")","v":"$ 0.00 "}]
[{"$f":"UPPER(CONVERTIRNUM(ROUND( G17 * 1.16, 2)))","v":"CERO PESOS 00/100 M.N."},null,null,null,null,"IVA M.N.",{"$f":"TEXT(ROUND( G17 * 0.16, 2),  \"$ #,##0.00 ;\")","v":"$ 0.00 "}]
[null,null,null,null,null,"TOTAL M.N.",{"$f":"TEXT(ROUND( G17 * 1.16, 2),  \"$ #,##0.00 ;\")","v":"$ 0.00 "}]